Cogmind - Beta 16 @@@ ROGUE MODE // 2025.12.25 @ 23:15:27 Player: lvl5hm Result: Assimilated 0b10! Performance ------------- Evolutions (9) 4500 Regions Visited (26) 5200 Robots Destroyed (349) 1745 Value Destroyed (22255) 22255 Prototype IDs (102) 2040 Alien Tech Used (15) 3000 Bonus (38119) 38119 TOTAL SCORE: 76859 Bonus ------- High Alert Combat Kills 2225 Follower Combat Kills 1154 Network Hubs Disabled 200 Delivered SUBCON Basin 2000 Registered with UFD 300 Met Imprinter 300 Destroyed Z-Imprinter 1000 Triggered Deep Caves Wall 500 Exposed GOLEM Chamber 500 Met Zhirov 300 Built Enhanced Grunts 300 A7 Reached Mainframe 300 Used Core Reset Matrix 3000 Met R17 at Research 2000 Destroyed MAIN.C Guards 500 Met MAIN.C 5000 Destroyed MAIN.C Shell 5000 Destroyed MAIN.C 10000 Used 0b10 Conduit 2000 Win 3000 Friendly Fire -1460 Cogmind --------- Core Integrity 1243/1850 Matter 160/300 Energy 1336/1770 System Corruption 0% +Membrane Temperature Cool (16) Movement Treading (143) Location 0b10 Command Parts ------- > --- POWER (3) -------- Zero-point Reactor Zero-point Reactor Zero-point Reactor > --- PROPULSION (6) --- Experimental Biometal Heavy Treads Experimental Biometal Heavy Treads Advanced Heavy Siege Treads > --- UTILITY (14) ----- Experimental Cooling System High-capacity Storage Unit Assembled Biocell Array Assembled Combat Suite Experimental Targeting Computer Heavy Regenerative Plating Heavy Regenerative Plating Graphene Brace Advanced Focal Shield AEGIS Remote Shield GOLEM Unit > --- WEAPON (3) ------- Enhanced Hardcell Cannon Graviton Cannon Enhanced Gamma Bomb Array > --- INVENTORY (22) --- Armored Heavy Treads Advanced Heavy Siege Treads Experimental Energy Well (0) Zionite Biocell (0) Zionite Biocell (126) Experimental Matter Compressor (500) AEGIS Remote Shield Subatomic Replicator Microwarp Drive Core Cannon Graviton Cannon Peak State ------------ > --- POWER ------------ Zero-point Reactor Zero-point Reactor Zero-point Reactor > --- PROPULSION ------- Experimental Biometal Heavy Treads Experimental Biometal Heavy Treads Advanced Heavy Siege Treads > --- UTILITY ---------- High-capacity Storage Unit Assembled Biocell Array Assembled Combat Suite Experimental Targeting Computer Assembled Alloy Armor Heavy Regenerative Plating Graphene Brace AEGIS Remote Shield GOLEM Unit Microwarp Drive > --- WEAPON ----------- Assembled Focal Cannon Core Cannon > --- INVENTORY -------- Zero-point Reactor Armored Heavy Treads Advanced Heavy Siege Treads Experimental Cooling System Experimental Energy Well Zionite Biocell Zionite Biocell Experimental Matter Compressor Heavy Regenerative Plating Advanced Focal Shield AEGIS Remote Shield Subatomic Replicator Enhanced Hardcell Cannon Graviton Cannon Graviton Cannon Enhanced Gamma Bomb Array [Rating: 265] Favorites ----------- Power Assembled Flux Generator Engine Deuterium Engine Power Core Fission Core Reactor Assembled Flux Generator Propulsion Assembled Alloy Leg Treads Light Treads Leg Assembled Alloy Leg Wheel Overtuned Huge Scrapsphere Hover Unit Zionite Glidesys I Utility Huge Storage Unit Device GOLEM Unit Storage Huge Storage Unit Processor Tech Extrapolator Hackware Authchip [Device] Protection Assembled Alloy Armor Artifact Phase Armor Weapon Assembled Focal Cannon Energy Gun Medium Laser Energy Cannon Assembled Focal Cannon Ballistic Gun Battle Rifle Ballistic Cannon Graviton Cannon Launcher Improved Proton Missile Launcher Special Weapon Multitool Impact Weapon Shock Maul Slashing Weapon Katana Special Melee Weapon Datajack Build | -11 -10 -10 -8 -8 -6 -6 -6 -6 -6 -5 -5 -5 -5 -5 -4 -4 -4 -4 -4 -4 -3 -3 -3 -2 -1 -1 ------- Run | Yrd Mat Sub Rec Scr Fac Low Low Zio Dee Pro Fac Upp Upp Zhi Pro Fac Ext Cet Arc Hub Res Qua Sec Res Acc Com Slots Evolved 18 | . . . . . 8 . . . . . 2 . . . . 2 . . . . 2 . . 2 2 . Power 2 | . . . . . 1 . . . . . . . . . . . . . . . . . . 1 . . Propulsion 4 | . . . . . . . . . . . 2 . . . . 1 . . . . . . . 1 . . Utility 11 | . . . . . 7 . . . . . . . . . . 1 . . . . 1 . . . 2 . Weapon 1 | . . . . . . . . . . . . . . . . . . . . . 1 . . . . . Parts Attached 264 | 8 2 16 4 9 37 7 5 2 27 1 4 3 . 3 1 16 8 3 4 . 11 23 17 15 14 24 Power 31 | 1 . 4 1 . 7 . . . 1 . . . . 1 . . . . . . . 2 1 2 6 5 Engine 11 | 1 . 4 1 . 5 . . . . . . . . . . . . . . . . . . . . . Core 2 | . . . . . 1 . . . . . . . . . . . . . . . . . . . . 1 Reactor 18 | . . . . . 1 . . . 1 . . . . 1 . . . . . . . 2 1 2 6 4 Propulsion 43 | 2 . 2 2 6 . . . . 3 . 1 . . . 1 6 3 1 1 . 3 3 2 3 2 2 Treads 14 | 2 . . 2 1 . . . . . . . . . . . . . . . . . 2 1 2 2 2 Leg 21 | . . . . 1 . . . . 1 . 1 . . . 1 6 3 1 1 . 3 1 1 1 . . Wheel 6 | . . 2 . 4 . . . . . . . . . . . . . . . . . . . . . . Hover 2 | . . . . . . . . . 2 . . . . . . . . . . . . . . . . . Flight . | . . . . . . . . . . . . . . . . . . . . . . . . . . . Utility 138 | 2 1 4 1 1 19 3 3 2 19 1 3 3 . 1 . 10 5 2 2 . 4 16 12 6 5 13 Device 66 | 1 . 1 . . 11 2 2 1 5 1 2 1 . . . 6 1 1 2 . 2 10 7 2 1 7 Storage 13 | 1 1 . . . . . . . 3 . 1 1 . 1 . . . . . . 1 . . . . 4 Processor 22 | . . . . 1 1 . . . 2 . . 1 . . . 2 1 . . . . 2 3 4 4 1 Hackware 4 | . . . . . 2 . . . . . . . . . . 2 . . . . . . . . . . Protection 30 | . . 3 1 . 5 1 1 1 9 . . . . . . . 3 1 . . 1 2 1 . . 1 Artifact 3 | . . . . . . . . . . . . . . . . . . . . . . 2 1 . . . Weapon 52 | 3 1 6 . 2 11 4 2 . 4 . . . . 1 . . . . 1 . 4 2 2 4 1 4 Energy Gun 8 | 1 . . . . 4 . . . 3 . . . . . . . . . . . . . . . . . Energy Cannon 9 | . 1 1 . 1 1 2 . . . . . . . . . . . . . . . . 1 1 1 . Ballistic Gun 7 | 2 . 3 . 1 1 . . . . . . . . . . . . . . . . . . . . . Ballistic Cannon 7 | . . . . . . . . . . . . . . . . . . . . . . 1 . 2 . 4 Launcher 11 | . . 2 . . . 2 2 . . . . . . . . . . . . . 4 . . 1 . . Special Weapon 4 | . . . . . 1 . . . 1 . . . . 1 . . . . . . . . 1 . . . Impact Weapon 3 | . . . . . 2 . . . . . . . . . . . . . . . . 1 . . . . Slashing Weapon 1 | . . . . . 1 . . . . . . . . . . . . . . . . . . . . . Piercing Weapon . | . . . . . . . . . . . . . . . . . . . . . . . . . . . Special Melee Weapon 2 | . . . . . 1 . . . . . . . . . . . . . 1 . . . . . . . Unidentified Prototypes 63 | . . . . . 7 2 . . 13 . . . . 3 . . 1 2 . . 5 13 6 3 . 8 Corrupted Parts 2 | . . . . . 1 . . 1 . . . . . . . . . . . . . . . . . . System Corruption 9 | . . . . . 4 . . 5 . . . . . . . . . . . . . . . . . . Parts Lost 26 | . . 4 . . 2 . . . 3 . 5 . . . . 7 2 . . . 1 . . 1 . 1 Power 2 | . . 1 . . . . . . . . 1 . . . . . . . . . . . . . . . Propulsion 3 | . . 1 . . . . . . . . . . . . . 2 . . . . . . . . . . Utility 18 | . . 1 . . 2 . . . 3 . 2 . . . . 5 2 . . . 1 . . 1 . 1 Weapon 3 | . . 1 . . . . . . . . 2 . . . . . . . . . . . . . . . Highest Loss Streak 3 | . . 2 . . 1 . . . 1 . 3 . . . . 3 1 . . . 1 . . 1 . 1 To Critical Strikes 1 | . . . . . . . . . 1 . . . . . . . . . . . . . . . . . Average Backups 18 | . 5 13 15 22 22 22 22 22 18 22 21 20 18 17 18 17 17 18 18 19 18 16 15 16 17 16 Power 1 | . . 1 . 1 1 2 2 2 2 3 3 2 3 2 2 1 2 2 2 2 2 1 . . 1 1 Propulsion 1 | . . 1 2 4 . . . . . 2 . . . . . . . 1 1 2 . . . . . 1 Utility 7 | . 1 3 4 8 7 7 9 8 9 11 12 12 10 10 10 10 9 10 10 10 10 7 8 9 8 6 Weapon 4 | . 3 6 5 6 8 8 6 6 3 2 2 1 2 2 2 1 2 2 2 2 2 4 2 5 6 5 Tool/Special . | . . . . . . . . . . . . . . . . . . . . . . . . . . . Unused Backups 58 | . . 5 1 5 9 1 1 2 10 . . 2 . 3 . . . . . 1 3 6 1 1 1 6 Power 7 | . . 1 . . . . . . 3 . . . . 2 . . . . . . . 1 . . . . Propulsion 3 | . . . . . 2 . . . . . . . . . . . . . . . . . . . . 1 Utility 30 | . . 2 1 3 5 . . 2 6 . . 1 . 1 . . . . . 1 3 2 . . 1 2 Weapon 14 | . . 2 . 2 2 1 1 . 1 . . . . . . . . . . . . 1 1 1 . 2 Tool/Special 4 | . . . . . . . . . . . . 1 . . . . . . . . . 2 . . . 1 Average Slot Usage (%) 85 | . 100 98 100 73 84 82 79 84 78 87 86 86 88 86 88 89 86 90 87 90 89 84 74 79 79 77 Engine 5 | . 14 13 14 14 6 6 6 6 . . . . . . . . . . . . . . . . . . Reactor 4 | . . . . . 4 6 6 6 8 6 4 4 5 5 5 5 5 5 4 5 4 4 4 8 11 10 Treads 6 | . 28 23 24 1 . . . . . . . . . . . . . . . . . 1 9 10 10 11 Leg 6 | . . . . . . . . . 4 12 20 21 22 22 22 24 21 25 23 25 22 19 4 3 . . Wheel 4 | . . 4 3 17 6 6 6 6 3 . . . . . . . . . . . . . . . . . Device 16 | . 14 11 1 . 25 24 24 29 18 18 20 21 22 22 22 25 25 15 15 15 21 20 20 18 20 21 Storage 10 | . 14 12 14 14 6 6 6 6 7 12 11 10 11 11 11 10 10 10 10 10 11 9 9 8 7 7 Processor 7 | . . . . 8 9 12 12 12 9 18 11 11 11 11 11 9 7 10 10 10 4 5 6 11 9 4 Protection 7 | . . 2 12 5 9 6 4 6 12 6 4 4 5 5 5 4 6 15 15 15 10 8 8 4 6 7 Energy Cannon 7 | . 11 9 14 2 . . 1 . 6 12 10 10 11 1 11 9 10 10 8 10 12 9 8 10 10 7 Ballistic Gun 4 | . 2 13 14 9 1 . . 5 . . . . . . . . . . . . . . . . . . Launcher 1 | . . . . . . 8 9 4 1 . . . . . . . . . . . . 1 . . . . Peak Build Rating 265 | 7 7 30 33 42 86 98 101 93 141 136 148 153 146 141 147 169 164 163 166 166 188 218 219 215 233 265 Average Rating 106 | 5 6 11 19 19 76 87 90 89 103 135 145 147 146 135 146 161 155 161 157 166 183 194 206 202 222 237 On Entrance 121 | . 7 7 30 18 42 84 98 90 93 136 136 106 146 146 146 147 148 157 163 166 166 187 213 206 209 222 Avg Prop Armor Cover (%) 7 | . . 9 11 4 . . . . . . . . . . . 9 . . . . . 3 2 7 5 . Naked Turns . | . . . . . . . . . . . . . . . . . . . . . . . . . . . Heaviest Build 200 | 14 91 99 107 107 133 142 140 144 165 164 169 165 127 127 127 127 135 135 136 136 160 195 165 173 184 200 Greatest Support 275 | 40 40 40 40 40 20 20 20 20 80 60 108 128 128 128 129 155 121 133 141 141 141 200 200 275 255 250 Greatest Overweight (x) 51 | . 2 4 5 34 6 7 6 7 51 2 2 2 . . . 1 2 1 1 . 1 1 4 2 1 . Average Overweight (x) 3 | . 1 2 3 6 5 6 6 6 4 2 1 . . . . . 1 1 . . . . . . . . Largest Inventory Capacity 25 | 8 25 25 25 25 25 25 25 25 25 25 25 25 20 20 20 20 20 20 20 20 20 20 22 22 22 22 Average Capacity 22 | 7 21 23 25 25 25 25 25 25 23 25 25 24 20 20 20 19 20 20 20 20 20 20 20 22 22 22 Most Carried 25 | 2 7 25 25 25 25 25 25 25 25 25 25 25 20 20 20 20 20 20 20 20 20 20 20 22 22 22 Average Carried 20 | 1 6 13 17 22 23 24 24 24 21 24 24 23 20 19 20 19 19 19 19 20 19 19 19 21 21 20 Final Capacity 25 | 8 25 25 25 25 25 25 25 25 25 25 25 20 20 20 20 20 20 20 20 20 20 20 22 22 22 22 Final Carried 25 | 2 7 25 19 23 25 25 25 25 25 25 25 20 20 20 20 17 20 19 20 20 20 20 19 21 21 16 Scrap Suit Usage (%) 3 | . . . . . 68 4 1 . . . . . . . . . . . . . . . . . . . Parts Cannibalized 5 | . . . . . 5 . . . . . . . . . . . . . . . . . . . . . Class Distribution -------------------- 38% | Mutant 29% | Golem 5% | Alien-Tank 5% | Alien-Skirmisher 4% | Skirmisher 4% | Scrapper 3% | Scavenger-Mutant Dominant Class ---------------- Mutant | -10/Materials Mutant | -10/Subcaves Mutant | -8/Recycling Mutant | -8/Scraptown Mutant | -6/Factory Skirmisher | -6/Lower Caves Skirmisher | -6/Lower Caves Scrapper | -6/Zion Mutant | -6/Deep Caves Golem | -5/Proximity Caves Golem | -5/Factory Golem | -5/Upper Caves Golem | -5/Upper Caves Golem | -5/Zhirov Golem | -4/Proximity Caves Golem | -4/Factory Golem | -4/Extension Commander-Golem | -4/Cetus Golem | -4/Archives Golem | -4/Hub_04(d) Golem | -3/Research Golem | -3/Quarantine Alien-Tank | -3/Section 7 Alien-Skirmisher | -2/Research Alien-Skirmisher | -1/Access Alien-Tank | -1/Command Resources | -11 -10 -10 -8 -8 -6 -6 -6 -6 -6 -5 -5 -5 -5 -5 -4 -4 -4 -4 -4 -4 -3 -3 -3 -2 -1 -1 ----------- Run | Yrd Mat Sub Rec Scr Fac Low Low Zio Dee Pro Fac Upp Upp Zhi Pro Fac Ext Cet Arc Hub Res Qua Sec Res Acc Com Matter Collected 11671 | 288 . 1033 61 70 747 1810 1006 90 677 20 130 187 28 126 26 475 187 56 70 . 200 760 778 394 512 1940 Remotely . | . . . . . . . . . . . . . . . . . . . . . . . . . . . Salvage Created 24302 | 119 . 636 55 . 1253 923 552 . 1083 96 2171 308 156 195 76 2195 650 414 236 115 767 1497 1741 1515 1708 5841 Parts 1044 | 9 . 46 1 . 24 27 15 . 64 3 101 17 4 3 2 126 24 11 17 2 25 69 69 68 95 222 Haulers Intercepted 3 | . . . . . 1 . . . . . . . . . . . . . . . 2 . . . . . Recyclers Shooed 3 | . . . . . 1 . . . . . 1 . . . . 1 . . . . . . . . . . Parts Field Recycled . | . . . . . . . . . . . . . . . . . . . . . . . . . . . Retrieved Matter . | . . . . . . . . . . . . . . . . . . . . . . . . . . . Parts Self-Destructed 42 | . . 13 . . . 2 4 . . 3 . 16 2 . 2 . . . . . . . . . . . Prevented 27 | . . . . . . 12 15 . . . . . . . . . . . . . . . . . . . Parts Restored . | . . . . . . . . . . . . . . . . . . . . . . . . . . . Kills | -11 -10 -10 -8 -8 -6 -6 -6 -6 -6 -5 -5 -5 -5 -5 -4 -4 -4 -4 -4 -4 -3 -3 -3 -2 -1 -1 ------- Run | Yrd Mat Sub Rec Scr Fac Low Low Zio Dee Pro Fac Upp Upp Zhi Pro Fac Ext Cet Arc Hub Res Qua Sec Res Acc Com Combat Hostiles Destroyed 318 | . . 20 1 . 11 12 6 . 43 2 29 8 2 . 1 38 9 5 1 1 8 18 22 17 24 40 Melee 3 | . . . . . 3 . . . . . . . . . . . . . . . . . . . . . Guns 13 | . . 8 . . 4 . . . 1 . . . . . . . . . . . . . . . . . Cannons 157 | . . 3 1 . . . . . 6 2 29 3 2 . 1 37 9 5 1 1 3 11 12 4 11 16 AOE 98 | . . 8 . . . 7 3 . 34 . . 5 . . . 1 . . . . 4 . 4 5 8 19 Classes Destroyed 31 | 2 . 5 1 . 5 3 1 . 4 . 3 . . . . 2 . . . . 1 1 1 2 . . Worker 11 | . . . . . 2 . . . . . 4 . . . . . . . . 1 . . . 1 . 3 Builder 11 | . . . . . . . . . . . 5 . . . . . . . . . 1 1 3 1 . . Tunneler 2 | 2 . . . . . . . . . . . . . . . . . . . . . . . . . . Hauler 3 | . . . . . 1 . . . . . . . . . . . . . . . 2 . . . . . Recycler 15 | 1 . . . . 4 . . . . . 4 . . . . 1 . . . . . . 1 . . 4 Operator 7 | . . . . . . . . . . . 1 . . . . . 1 . 4 . 1 . . . . . Turret 2 | . . 2 . . . . . . . . . . . . . . . . . . . . . . . . Watcher 11 | . . . . . . . . . . . . . . . . 1 1 . . 1 . 1 1 1 3 2 Swarmer 45 | . . 4 . . . . 1 . . . 5 5 . . . 10 . . . . 1 4 5 . 8 2 Grunt 48 | . . . . . 5 3 2 . . 2 11 . . . 1 2 6 . . . 1 . 5 3 3 4 Brawler 2 | . . . . . . . . . . . . . . . . 1 . . . . . . . . 1 . Duelist 5 | . . . . . . 1 1 . . . 1 . . . . . 1 . . . . . . 1 . . Protector 1 | . . . . . . . . . . . . . . . . . . . . . . . . 1 . . Sentry 17 | . . . 1 . 2 . . . . . 2 . 1 . . 5 1 . 1 . . . 2 . 2 . Specialist 3 | . . . . . . . . . . . 1 . . . . . . . . . . . . . . 2 Hunter 36 | . . . . . 2 2 2 . . . 2 2 . . . 7 . . . 1 2 2 2 4 . 8 Programmer 65 | . . . . . 2 . . . . . 7 . . . . 12 1 . . . . 5 5 5 10 18 Heavy 1 | . . . . . . . . . . . . . . . . 1 . . . . . . . . . . Cetus Guard 5 | . . . . . . . . . . . . . . . . . . 5 . . . . . . . . Quarantine Guard 6 | . . . . . . . . . . . . . . . . . . . . . . 6 . . . . S7 Guard 1 | . . . . . . . . . . . . . . . . . . . . . . . 1 . . . M Guard 2 | . . . . . . . . . . . . . . . . . . . . . . . . . . 2 Combat Programmer 2 | . . . . . . . . . . . . . . . . . . . . . . . . . . 2 Striker 5 | . . . . . . . . . . . . . . . . . . . . . 4 . . 1 . . Executioner 2 | . . . . . . . . . . . . . . . . . . . . . . . . 2 . . Alpha 7 2 | . . . . . . . . . . . . . . . . . . . . . . . 2 . . . Fortress 1 | . . . . . . . . . . . . . . . . . . . . . . 1 . . . . Artisan 2 | . . 2 . . . . . . . . . . . . . . . . . . . . . . . . Cobbler 1 | . . 1 . . . . . . . . . . . . . . . . . . . . . . . . Subdweller 16 | . . 16 . . . . . . . . . . . . . . . . . . . . . . . . Z-Light 7 | . . . . . . . . . 7 . . . . . . . . . . . . . . . . . Decomposer 1 | . . . . . . . . . . . . 1 . . . . . . . . . . . . . . Packrat 1 | . . . . . . 1 . . . . . . . . . . . . . . . . . . . . Samaritan 4 | . . . . . . . 4 . . . . . . . . . . . . . . . . . . . Assembler 2 | . . . . . . . . . 2 . . . . . . . . . . . . . . . . . Assembled 33 | . . . . . . . . . 33 . . . . . . . . . . . . . . . . . Golem 3 | . . . . . . . . . 2 . . 1 . . . . . . . . . . . . . . Savage 4 | . . . . . . 4 . . . . . . . . . . . . . . . . . . . . Butcher 2 | . . . . . . 1 . . . . . . 1 . . . . . . . . . . . . . Mutant 1 | . . . . . . 1 . . . . . . . . . . . . . . . . . . . . Best Kill Streak 33 | 3 . 5 1 . 3 5 2 . 33 2 12 5 1 . 1 6 3 3 1 1 7 4 8 15 9 24 Combat Bots Only 31 | . . 3 1 . 3 5 2 . 31 2 8 5 1 . 1 5 3 3 1 1 7 4 8 13 9 24 Max Kills in Single Turn 25 | 1 . 2 1 . 1 3 1 . 25 1 6 4 1 . 1 2 1 1 1 1 1 1 3 4 4 4 Gunslinging . | . . . . . . . . . . . . . . . . . . . . . . . . . . . Exploded 25 | . . 2 . . . 3 1 . 25 . . 4 . . . 1 . . . . 1 . 3 4 4 4 Melee 1 | . . . . . 1 . . . . . . . . . . . . . . . . . . . . . Uniques/NPCs Destroyed 4 | . . . . . . . . . 1 . . . . . . . . 1 . . . . . . . 2 Z-Imprinter (-6/Deep Caves) A7 (-4/Cetus) MAIN.C Shell (-1/Command) MAIN.C (-1/Command) Combat | -11 -10 -10 -8 -8 -6 -6 -6 -6 -6 -5 -5 -5 -5 -5 -4 -4 -4 -4 -4 -4 -3 -3 -3 -2 -1 -1 -------- Run | Yrd Mat Sub Rec Scr Fac Low Low Zio Dee Pro Fac Upp Upp Zhi Pro Fac Ext Cet Arc Hub Res Qua Sec Res Acc Com Hostile Shots Fired 2017 | . . 97 10 . 178 8 36 . 49 1 276 23 6 . 6 292 44 14 9 . 11 174 188 72 142 381 Missed 788 | . . 35 5 . 51 2 10 . 11 . 94 13 1 . 3 173 20 7 2 . 4 61 67 31 62 136 Intercepted 1 | . . . . . . . . . . . . . . . . . . . . . . . . . . 1 Hits 1229 | . . 62 5 . 127 6 26 . 38 1 182 10 5 . 3 119 24 7 7 . 7 113 121 41 80 245 Melee 8 | . . . . . . . . . 2 . 1 . . . . 3 . . . . 1 . . . . 1 Projectile 1221 | . . 62 5 . 127 6 26 . 36 1 181 10 5 . 3 116 24 7 7 . 6 113 121 41 80 244 AOE 12 | . . 3 . . . . . . . . . . . . . 1 1 . . . 1 . 1 . . 5 Critical Strikes 63 | . . 1 . . 3 . . . 2 . 4 . 1 . . 6 3 2 1 . 1 6 11 3 3 16 Actively Blocked 21 | . . . . . . . . . . . . . . . . 2 1 . . . . 3 . . . 15 Part Disruptions 11 | . . . . . . . . . 1 . . . . . . . . . . . . . . 1 3 6 Damage Taken 19731 | . . 1311 78 . 1467 144 450 . 1321 24 2188 118 61 . 29 2500 467 146 206 75 288 2010 1682 602 695 3869 Core 1887 | . . 218 16 . 81 22 85 . 222 16 229 . 13 . . 111 38 12 22 . 17 256 251 51 63 164 Absorbed by Shields 6329 | . . . . . 428 . . . . . 495 29 25 . 12 . 55 32 . . . 789 569 280 377 3238 Reduced by Siege Mode 230 | . . . . . . . . . . . . . . . . . . . . . . . 7 . . 223 Redirected to Core 135 | . . . . . . . . . . . . . . . . . . . . . . 135 . . . . Redirected to Shielding 84 | . . . . . . . . . 84 . . . . . . . . . . . . . . . . . Ignored by Resistances 5780 | . . 21 . . . . . . . 5 431 30 18 . 9 407 100 39 42 14 56 552 755 474 1071 1756 Regen/Repaired (Parts) 2123 | . . . . . 34 . . . . . . . . . . . 41 46 24 . 241 131 609 146 172 679 Core Remaining (%) 67 | 100 . . . 6 . . . . . 49 . . . . 75 . . . . 84 . . 60 97 . 67 Volleys Fired 1036 | 8 1 88 9 . 19 18 25 . 34 11 93 15 4 9 5 180 34 19 13 14 34 79 67 24 66 167 Largest 3 | 2 2 2 2 . 2 2 2 . 2 2 2 2 2 1 2 2 2 2 2 2 3 3 3 3 3 3 Hottest 325 | 70 110 100 105 . 150 150 150 . 150 50 50 50 50 25 50 50 50 50 50 50 80 80 300 119 300 325 Shots Fired 1743 | 16 2 127 15 . 37 36 36 . 66 22 163 30 9 9 10 257 65 35 27 20 76 126 98 41 113 307 Gun 131 | 16 1 61 7 . 29 . 1 . 16 . . . . . . . . . . . . . . . . . Cannon 1433 | . 1 49 8 . 8 8 4 . 35 22 163 28 9 4 10 257 65 35 27 20 70 113 85 36 104 272 Launcher 171 | . . 17 . . . 28 31 . 14 . . 2 . . . . . . . . 6 13 11 5 9 35 Special 8 | . . . . . . . . . 1 . . . . 5 . . . . . . . . 2 . . . Kinetic 171 | 8 . 67 7 . 10 . 1 . 8 . . . . . . . . . . . . . . . . 70 Thermal 1358 | 8 2 59 8 . 27 . . . 13 22 163 28 9 4 10 257 65 35 27 20 70 113 85 35 100 198 Explosive 10 | . . 1 . . . . 2 . 5 . . 2 . . . . . . . . . . . . . . Electromagnetic 196 | . . . . . . 36 33 . 39 . . . . . . . . . . . 6 13 11 6 13 39 Robot Hit Streak 50 | 4 2 19 6 . 8 3 5 . 7 6 37 7 10 6 9 19 23 8 11 12 7 11 24 9 16 50 Robot Miss Streak 4 | 2 1 3 1 . 2 1 1 . 4 . 2 2 1 2 2 4 4 1 1 2 1 3 1 1 1 2 Penetration Max . | . . . . . . . . . . . . . . . . . . . . . . . . . . . Secondary Targets . | . . . . . . . . . . . . . . . . . . . . . . . . . . . Shots Hit Robots 991 | 9 1 78 11 . 57 8 9 . 29 5 107 14 4 6 6 111 38 20 22 4 28 52 55 19 62 236 Core Hits 813 | 4 . 44 1 . 14 24 20 . 78 2 58 14 3 4 2 57 17 15 10 5 21 41 52 73 55 199 Critical Kills 6 | 1 . 1 . . 1 . . . . . . . . . . . . . . . . . . . . 3 Critical Parts Destroyed 14 | . . . . . 7 . 1 . . . . . . . . . . . . . . . . . . 6 Critical Strikes 26 | 1 . 2 . . 8 . 1 . . . . . . . . . . . . . . . . . . 14 Burn 1 | . . 1 . . . . . . . . . . . . . . . . . . . . . . . . Destroy 14 | 1 . 1 . . . . . . . . . . . . . . . . . . . . . . . 12 Blast 2 | . . . . . . . . . . . . . . . . . . . . . . . . . . 2 Smash 9 | . . . . . 8 . 1 . . . . . . . . . . . . . . . . . . . Melee Attacks 115 | . . . . . 69 14 1 . 4 . . . . . . . . . 1 . . 4 22 . . . Kinetic 26 | . . . . . . . . . . . . . . . . . . . . . . 4 22 . . . Impact 85 | . . . . . 66 14 1 . 4 . . . . . . . . . . . . . . . . . Slashing 2 | . . . . . 2 . . . . . . . . . . . . . . . . . . . . . Piercing . | . . . . . . . . . . . . . . . . . . . . . . . . . . . Sneak Attacks 10 | . . . . . 8 . . . . . . . . . . . . . 1 . . . 1 . . . Combat Hostiles . | . . . . . . . . . . . . . . . . . . . . . . . . . . . Follow-up Attacks 1 | . . . . . 1 . . . . . . . . . . . . . . . . . . . . . Damage Inflicted 63981 | 83 13 2633 209 . 2485 1779 1090 . 3261 202 5847 992 174 142 239 5864 1835 1232 992 373 1991 3503 3556 3222 4324 17940 Guns 1508 | 83 13 548 98 . 508 . 36 . 222 . . . . . . . . . . . . . . . . . Cannons 41897 | . . 559 111 . 193 148 107 . 530 202 5222 601 174 142 239 5573 1835 1232 992 193 1317 2473 1998 893 3211 13952 Explosions 17680 | . . 1526 . . . 1486 897 . 2509 . 609 391 . . . 143 . . . 180 674 958 877 2329 1113 3988 Melee 2727 | . . . . . 1784 145 50 . . . . . . . . . . . . . . 72 676 . . . Ramming 169 | . . . . . . . . . . . 16 . . . . 148 . . . . . . 5 . . . Kinetic 6170 | 45 . 1950 98 . 211 . 36 . 96 . . . . . . . . . . . . 72 676 . . 2986 Thermal 41507 | 38 13 683 111 . 490 189 . . 289 202 5222 601 174 142 239 5716 1835 1232 992 193 1608 2651 1998 1828 3135 11926 Explosive 2588 | . . . . . . . 33 . 1474 . 609 391 . . . . . . . . . 81 . . . . Electromagnetic 11568 | . . . . . . 1445 971 . 1402 . . . . . . . . . . 180 383 699 877 1394 1189 3028 Impact 1860 | . . . . . 1665 145 50 . . . . . . . . . . . . . . . . . . . Slashing 119 | . . . . . 119 . . . . . . . . . . . . . . . . . . . . . Piercing . | . . . . . . . . . . . . . . . . . . . . . . . . . . . Highest Corruption 10 | . . . . . 6 1 1 6 . . 6 6 6 6 6 7 8 8 8 1 6 10 1 . . . Average Corruption 3 | . . . . . 2 1 1 2 . . 3 6 6 6 6 1 7 8 5 1 5 8 1 . . . Corruption Purged 13 | . . . . . 5 . . . . . . . . . . . . . 8 . . . . . . . Corruption Blocked . | . . . . . . . . . . . . . . . . . . . . . . . . . . . Effects 291 | . . . . . 19 23 11 1 . . 10 31 12 8 10 20 38 15 5 . 4 70 14 . . . Message Errors 63 | . . . . . 7 3 . . . . 1 10 1 1 1 7 11 3 1 . . 14 3 . . . Matter Fused 67 | . . . . . 1 5 . . . . 5 8 6 1 2 3 10 4 1 . 1 18 2 . . . Heat Flow Errors 47 | . . . . . 6 5 5 . . . . . . 1 2 4 4 3 1 . . 12 4 . . . Energy Discharges 36 | . . . . . 2 9 2 . . . 1 3 . 1 3 1 2 1 . . . 10 1 . . . Parts Rejected 4 | . . . . . . . . . . . . . . . . . 1 . . . . . 3 . . . Parts Fused 3 | . . . . . . 1 . . . . 1 . 1 . . . . . . . . . . . . . Data Loss (minor) 40 | . . . . . 2 . 2 1 . . 2 6 1 3 1 2 7 3 1 . 2 6 1 . . . Data Loss (major) 11 | . . . . . 1 . 2 . . . . 1 . 1 1 . 2 1 . . . 2 . . . . Misfires 8 | . . . . . . . . . . . . 3 2 . . . . . 1 . 1 1 . . . . Alerts 6 | . . . . . . . . . . . . . . . . 1 . . . . . 5 . . . . Weapon Failures 6 | . . . . . . . . . . . . . 1 . . 2 1 . . . . 2 . . . . Overload Shots . | . . . . . . . . . . . . . . . . . . . . . . . . . . . Overflow Damage 3154 | . . 116 . . 601 8 105 . 117 13 239 . . . . 191 72 . 65 48 104 190 124 93 217 851 Projectiles 1991 | . . . . . 14 . . . 2 13 231 . . . . 179 72 . 65 . 69 172 124 54 217 779 Explosions 514 | . . 116 . . . 8 55 . 115 . 8 . . . . . . . . 48 35 18 . 39 . 72 Melee 649 | . . . . . 587 . 50 . . . . . . . . 12 . . . . . . . . . . Knockbacks 36 | . . . . . 12 . . . . . 1 . . . . 1 . . . . . . . . . 22 Impact 14 | . . . . . 12 . . . . . 1 . . . . 1 . . . . . . . . . . Kinetic 22 | . . . . . . . . . . . . . . . . . . . . . . . . . . 22 Secondary . | . . . . . . . . . . . . . . . . . . . . . . . . . . . Self-Inflicted Damage 1160 | . . 78 . . . 39 13 . . . 84 21 . . . 87 . . . 77 56 96 82 175 11 341 Shots 79 | . . 3 . . . 2 1 . . . 1 1 . . . 2 . . . 1 6 4 10 20 5 23 Rammed 1 | . . . . . . . . . . . . . . . . . . . . . . . 1 . . . Targets Rammed 12 | . . . . . . . . . . . 2 . . . . 9 . . . . . . 1 . . . Kicked 11 | . . . . . . . . . . . 2 . . . . 9 . . . . . . . . . . Crushed . | . . . . . . . . . . . . . . . . . . . . . . . . . . . Highest Temperature 386 | 100 48 15 298 . 245 267 274 . 112 . 3 . . 257 261 254 240 203 125 . . 328 386 . 152 306 Average Temperature 90 | 43 27 4 116 . 49 103 107 . 36 . 3 . . 137 119 107 83 87 76 . . 99 100 . 89 102 Received Heat Transfer 1659 | . . 261 18 . 361 9 72 . 205 9 288 . 43 . 12 63 122 . 9 . . 32 64 8 35 48 Effects 1 | . . . . . . . . . . . . . . . . . . . . . . 1 . . . . Energy Bleed 1 | . . . . . . . . . . . . . . . . . . . . . . 1 . . . . Siege Activations 5 | . . . . . . . . . . . . . . . . . . . . . . . 1 . . 4 Total Turns 136 | . . . . . . . . . . . . . . . . . . . . . . . 10 . . 126 Longest Duration 67 | . . . . . . . . . . . . . . . . . . . . . . . 10 . . 67 Martial Activations . | . . . . . . . . . . . . . . . . . . . . . . . . . . . Shielding Activations . | . . . . . . . . . . . . . . . . . . . . . . . . . . . Robots Disrupted 5 | . . . . . . . . . 1 . . . . . . . . . . . . . . 2 . 2 Combat Hostiles 4 | . . . . . . . . . 1 . . . . . . . . . . . . . . 1 . 2 Robots Corrupted 42 | . . . . . 7 5 3 . 2 . . . . . . . . . . . 1 5 2 7 5 5 Combat Hostiles 38 | . . . . . 3 5 3 . 2 . . . . . . . . . . . 1 5 2 7 5 5 Parts Fried 111 | . . . . . 10 11 11 . 5 . . . . . . . . . . . 2 22 5 16 13 16 Impact Corruptions 23 | . . . . . 20 . 2 . . . . . . . . 1 . . . . . . . . . . Robots Melted 3 | . . . . . . . . . . . . . . . . . . . . . . 2 . 1 . . Combat Hostiles 1 | . . . . . . . . . . . . . . . . . . . . . . . . 1 . . Parts Melted 35 | . . 4 . . 3 . . . . . 2 1 . . . 3 2 . . . 1 2 2 10 5 . Heat Transferred 19673 | 111 37 1480 148 . 733 100 . . 173 100 2553 325 100 62 125 3075 1000 700 550 100 962 1350 975 1213 1575 2126 Parts Sabotaged 1 | . . . . . . . . . . . . . . . . . . . . . . . . . . 1 Parts Stolen . | . . . . . . . . . . . . . . . . . . . . . . . . . . . Parts Stripped 81 | . . . . . . . . . . . . . . . . . . . . . . 33 48 . . . Power Chain Reactions 20 | . . . . . . 2 . . 1 . . . . . . . . . . . 2 2 . 4 2 7 Alert | -11 -10 -10 -8 -8 -6 -6 -6 -6 -6 -5 -5 -5 -5 -5 -4 -4 -4 -4 -4 -4 -3 -3 -3 -2 -1 -1 ------- Run | Yrd Mat Sub Rec Scr Fac Low Low Zio Dee Pro Fac Upp Upp Zhi Pro Fac Ext Cet Arc Hub Res Qua Sec Res Acc Com Maximum Alert Level 4 | . . . . . . . . . . . 3 . . . . 3 2 . 1 2 1 1 2 2 2 4 Low Security (%) 59 | 100 100 . 100 . 100 . . . . . 49 . . . . 19 43 100 96 85 88 64 58 50 7 1 Level 1 22 | . . . . . . . . . . . 30 . . . . 33 49 . 3 . 11 35 29 26 26 56 Level 2 15 | . . . . . . . . . . . 18 . . . . 28 6 . . 14 . . 11 22 65 33 Level 3 2 | . . . . . . . . . . . 1 . . . . 18 . . . . . . . . . 3 Level 4 . | . . . . . . . . . . . . . . . . . . . . . . . . . . 4 Level 5 . | . . . . . . . . . . . . . . . . . . . . . . . . . . . High Security . | . . . . . . . . . . . . . . . . . . . . . . . . . . . Max Security . | . . . . . . . . . . . . . . . . . . . . . . . . . . . Peak Influence 916 | 10 . . 79 . 126 . . . . . 722 . . . . 916 438 173 212 432 253 254 489 499 601 607 Initial 438 | . . . 79 . . . . . . . . . . . . 150 438 116 49 . 216 90 123 262 289 266 Average 193 | 1 . . 5 . 42 . . . . . 226 . . . . 417 242 104 80 83 79 167 178 246 410 343 Influence Increases 10917 | 15 . 165 124 . 508 174 237 . . 44 1084 160 20 . 20 1606 399 322 247 540 407 851 876 493 821 1804 Destroy 0b10 Robot/C 5360 | . . 120 20 . 220 120 200 . . 40 600 140 20 . 20 760 260 160 80 40 200 360 440 320 480 760 Destroy 0b10 Robot/NC 365 | 15 . . . . 35 . . . . . 75 . . . . 10 15 10 25 10 20 10 25 20 15 80 Destroy Leader 980 | . . . . . 62 30 20 . . . 112 20 . . . 172 42 . . 12 34 102 92 52 106 124 Allied During Kill 369 | . . . . . . 24 17 . . 4 3 . . . . . 27 117 87 45 45 . . . . . Successful Hack 174 | . . . 10 . 16 . . . . . 24 . . . . 45 12 . . . 7 . 27 8 21 4 Select Force Hacks 90 | . . . 90 . . . . . . . . . . . . . . . . . . . . . . . Disable Machine 885 | . . . . . 30 . . . . . 90 . . . . 120 15 15 45 180 . 195 165 . . 30 Destroy Structure 1629 | . . . 4 . 25 . . . . . 150 . . . . 274 28 20 10 238 86 154 112 78 169 281 Advance Influence 150 | . . . . . . . . . . . . . . . . 150 . . . . . . . . . . Partial Spotted 45 | . . . . . 15 . . . . . . . . . . 15 . . . . . . 15 . . . Lose Combat Pursuer 870 | . . 45 . . 105 . . . . . 30 . . . . 60 . . . 15 15 30 . 15 30 525 Influence Decreases 9351 | 15 . . 289 . 432 250 159 78 . 44 412 735 117 . 20 710 1086 407 371 128 659 790 630 477 887 655 Entered New Map 2001 | . . . 86 . . 29 . 78 . . . 249 19 . . . 458 93 75 . 196 70 98 205 194 151 Time Decay 6798 | 15 . . 203 . 416 221 159 . . 44 362 486 98 . 20 640 458 238 276 128 437 720 428 262 693 494 Lost Part 178 | . . . . . 16 . . . . . 50 . . . . 70 20 . . . 2 . . 10 . 10 Lost Ally 120 | . . . . . . . . . . . . . . . . . . 76 20 . 24 . . . . . Purge Threat 254 | . . . . . . . . . . . . . . . . . 150 . . . . . 104 . . . Squads Dispatched 61 | . . . . . 10 . . . . . 7 . . . . 9 . . . 2 3 3 4 3 13 7 Investigation 9 | . . . . . 3 . . . . . 2 . . . . 1 . . . 1 2 . . . . . Extermination 32 | . . . . . 4 . . . . . 3 . . . . 5 . . . 1 . 2 3 2 8 4 Reinforcement 11 | . . . . . 3 . . . . . . . . . . 2 . . . . 1 1 1 1 1 1 Assault 7 | . . . . . . . . . . . . . . . . 1 . . . . . . . . 4 2 Garrison 2 | . . . . . . . . . . . 2 . . . . . . . . . . . . . . . Intercept . | . . . . . . . . . . . . . . . . . . . . . . . . . . . Searches Triggered . | . . . . . . . . . . . . . . . . . . . . . . . . . . . Unchained Authorized 1 | . . . . . . . . . . . . . . . . . . . . . . . . . 1 . Construction Impeded 2 | . . . . . 1 . . . . . . . . . . . . . . . . . 1 . . . Haulers Reinforced 3 | . . . . . . . . . . . . . . . . 1 . . . . 1 . . . 1 . Active Scanning Responses . | . . . . . . . . . . . . . . . . . . . . . . . . . . . Cargo Convoy Interrupts 2 | . . . . . . . . . . . 1 . . . . . . . . . . . . 1 . . Stealth | -11 -10 -10 -8 -8 -6 -6 -6 -6 -6 -5 -5 -5 -5 -5 -4 -4 -4 -4 -4 -4 -3 -3 -3 -2 -1 -1 --------- Run | Yrd Mat Sub Rec Scr Fac Low Low Zio Dee Pro Fac Upp Upp Zhi Pro Fac Ext Cet Arc Hub Res Qua Sec Res Acc Com Distress Signals 39 | . . . . . 3 . . . . 1 1 . . . . 4 3 2 . 1 6 2 1 2 1 12 Communications Jammed 109 | . . . . . . . . . . . . . . . . 62 10 . . . . 13 23 . 1 . Distress Signals 103 | . . . . . . . . . . . . . . . . 56 10 . . . . 13 23 . 1 . Times Spotted 472 | . 1 25 1 . 24 12 9 . 54 2 45 8 4 . 2 50 18 10 8 5 19 26 32 23 24 70 Peak Tracking Total 51 | . 1 6 1 . 4 5 4 . 37 2 13 5 4 . 1 6 4 5 1 2 8 4 6 15 8 51 Tactical Retreats 30 | . . 4 . . 5 . . . . . 2 . . . . 4 . . . 1 1 2 . 1 2 8 Traps | -11 -10 -10 -8 -8 -6 -6 -6 -6 -6 -5 -5 -5 -5 -5 -4 -4 -4 -4 -4 -4 -3 -3 -3 -2 -1 -1 ------- Run | Yrd Mat Sub Rec Scr Fac Low Low Zio Dee Pro Fac Upp Upp Zhi Pro Fac Ext Cet Arc Hub Res Qua Sec Res Acc Com Traps Triggered 23 | . . . . . . . . . . . . . . . . 3 4 . . . . 1 7 . 6 2 Indirectly 11 | . . . . . . . . . . . . . . . . . . . . . . . 7 . 4 . Trap Hack Attempts . | . . . . . . . . . . . . . . . . . . . . . . . . . . . Triggered . | . . . . . . . . . . . . . . . . . . . . . . . . . . . Disarmed . | . . . . . . . . . . . . . . . . . . . . . . . . . . . Reprogrammed . | . . . . . . . . . . . . . . . . . . . . . . . . . . . Reused . | . . . . . . . . . . . . . . . . . . . . . . . . . . . Traps Extracted . | . . . . . . . . . . . . . . . . . . . . . . . . . . . Installed . | . . . . . . . . . . . . . . . . . . . . . . . . . . . Triggered . | . . . . . . . . . . . . . . . . . . . . . . . . . . . Machines | -11 -10 -10 -8 -8 -6 -6 -6 -6 -6 -5 -5 -5 -5 -5 -4 -4 -4 -4 -4 -4 -3 -3 -3 -2 -1 -1 ---------- Run | Yrd Mat Sub Rec Scr Fac Low Low Zio Dee Pro Fac Upp Upp Zhi Pro Fac Ext Cet Arc Hub Res Qua Sec Res Acc Com Machines Disabled 67 | . . 4 . . 2 . . . 2 . 6 1 . . . 8 1 1 3 12 . 13 12 . . 2 Max in Single Turn 11 | . . 3 . . 1 . . . 1 . 1 1 . . . 2 1 1 1 11 . 1 3 . . 1 Garrison Access 4 | . . . . . 1 . . . . . . . . . . 2 . . . . . 1 . . . . Network Hub 1 | . . . . . . . . . . . . . . . . . . . . 1 . . . . . . Energy Cycler 5 | . . . . . . . . . . . . . . . . . 5 . . . . . . . . . Machines Repaired . | . . . . . . . . . . . . . . . . . . . . . . . . . . . Machines Dismantled . | . . . . . . . . . . . . . . . . . . . . . . . . . . . Machines Sabotaged . | . . . . . . . . . . . . . . . . . . . . . . . . . . . Overloaded Fab Kills . | . . . . . . . . . . . . . . . . . . . . . . . . . . . Hacking | -11 -10 -10 -8 -8 -6 -6 -6 -6 -6 -5 -5 -5 -5 -5 -4 -4 -4 -4 -4 -4 -3 -3 -3 -2 -1 -1 --------- Run | Yrd Mat Sub Rec Scr Fac Low Low Zio Dee Pro Fac Upp Upp Zhi Pro Fac Ext Cet Arc Hub Res Qua Sec Res Acc Com Machines Accessed 75 | . . 3 9 3 13 1 . . . 1 4 . 1 4 . 12 2 . . 1 5 5 5 2 3 1 Terminals 33 | . . . 6 . 7 . . . . 1 1 . . . . 4 2 . . 1 2 1 4 1 2 1 Fabricators 5 | . . . . . 3 . . . . . . . . . . 1 . . . . . . . . 1 . Repair Stations 5 | . . . . . . . . . . . 1 . . . . 2 . . . . 1 1 . . . . Recycling Units 3 | . . . 3 . . . . . . . . . . . . . . . . . . . . . . . Scanalyzers 8 | . . . . . 1 . . . . . 1 . . . . 2 . . . . 1 2 1 . . . Garrison Access 9 | . . . . . 2 . . . . . 1 . . . . 3 . . . . 1 1 . 1 . . Total Hacks 172 | . . 3 19 17 25 1 . . . 1 8 . 1 17 . 29 3 . . 2 7 13 12 7 6 1 Successful 90 | . . 3 9 17 12 1 . . . 1 2 . 1 17 . 12 2 . . 1 3 2 3 1 2 1 Failed 81 | . . . 10 . 12 . . . . . 6 . . . . 17 1 . . 1 4 11 9 6 4 . Catastrophic 22 | . . . . . 1 . . . . . 3 . . . . 5 . . . . 3 4 3 2 1 . Database Lockouts 1 | . . . . . 1 . . . . . . . . . . . . . . . . . . . . . Manual 70 | . . . 19 . 13 . . 4 . . 2 . . . . 6 1 1 . 2 . 6 9 5 2 . Terminals 64 | . . . 14 . 10 . . . . 1 2 . . . . 7 3 . . 2 2 1 11 5 5 1 Fabricators 14 | . . . . . 11 . . . . . . . . . . 2 . . . . . . . . 1 . Repair Stations 16 | . . . . . . . . . . . 2 . . . . 8 . . . . 2 4 . . . . Recycling Units 5 | . . . 5 . . . . . . . . . . . . . . . . . . . . . . . Scanalyzers 20 | . . . . . 1 . . . . . 2 . . . . 7 . . . . 2 7 1 . . . Garrison Access 14 | . . . . . 3 . . . . . 2 . . . . 5 . . . . 1 1 . 2 . . Terminal Hacks 52 | . . 3 . 17 4 1 . . . 1 . . 1 17 . 1 1 . . . . . 3 1 1 1 Record 18 | . . . . 12 . . . . . 1 . . . 5 . . . . . . . . . . . . Part Schematic 6 | . . . . . 1 . . . . . . . . 4 . 1 . . . . . . . . . . Robot Analysis 9 | . . . . 5 . . . . . . . . . 4 . . . . . . . . . . . . Prototype ID Bank 4 | . . . . . . . . . . . . . . 4 . . . . . . . . . . . . Open Door 6 | . . 1 . . . 1 . . . . . . 1 . . . . . . . . . 1 . 1 1 Level Access Points 1 | . . . . . . . . . . . . . . . . . . . . . . . 1 . . . Branch Access Points 1 | . . . . . . . . . . . . . . . . . . . . . . . . 1 . . Fabricator Index 1 | . . . . . 1 . . . . . . . . . . . . . . . . . . . . . Unreport Threat 2 | . . . . . . . . . . . . . . . . . 1 . . . . . 1 . . . Recall Extermination 1 | . . . . . 1 . . . . . . . . . . . . . . . . . . . . . Registered Components 1 | . . . . . 1 . . . . . . . . . . . . . . . . . . . . . Proto ID Catalog 1 | . . 1 . . . . . . . . . . . . . . . . . . . . . . . . Release Object 1 | . . 1 . . . . . . . . . . . . . . . . . . . . . . . . Fabricator Hacks 8 | . . . . . 5 . . . . . . . . . . 2 . . . . . . . . 1 . Load Schematic 4 | . . . . . 3 . . . . . . . . . . 1 . . . . . . . . . . Build 4 | . . . . . 2 . . . . . . . . . . 1 . . . . . . . . 1 . Repair Station Hacks 6 | . . . . . . . . . . . 1 . . . . 3 . . . . 2 . . . . . Scan Component 4 | . . . . . . . . . . . 1 . . . . 2 . . . . 1 . . . . . Repair 2 | . . . . . . . . . . . . . . . . 1 . . . . 1 . . . . . Recycling Unit Hacks . | . . . . . . . . . . . . . . . . . . . . . . . . . . . Scanalyzer 6 | . . . . . . . . . . . 1 . . . . 3 . . . . 1 1 . . . . Insert Component 3 | . . . . . . . . . . . 1 . . . . 2 . . . . . . . . . . Analyze 1 | . . . . . . . . . . . . . . . . 1 . . . . . . . . . . Retrieve Study 2 | . . . . . . . . . . . . . . . . . . . . . 1 1 . . . . Garrison Access Hacks 4 | . . . . . 1 . . . . . . . . . . 2 . . . . . 1 . . . . Seal Access 4 | . . . . . 1 . . . . . . . . . . 2 . . . . . 1 . . . . Unauthorized Hacks 14 | . . . 9 . 2 . . . . . . . . . . 1 1 . . 1 . . . . . . Terminals 9 | . . . 6 . . . . . . . . . . . . 1 1 . . 1 . . . . . . Botnet 3 | . . . 1 . . . . . . . . . . . . 1 1 . . . . . . . . . Skim 5 | . . . 5 . . . . . . . . . . . . . . . . . . . . . . . Sabotage 1 | . . . . . . . . . . . . . . . . . . . . 1 . . . . . . Fabricators 2 | . . . . . 2 . . . . . . . . . . . . . . . . . . . . . Prioritize 1 | . . . . . 1 . . . . . . . . . . . . . . . . . . . . . Recompile 1 | . . . . . 1 . . . . . . . . . . . . . . . . . . . . . Repair Stations . | . . . . . . . . . . . . . . . . . . . . . . . . . . . Recycling Units 3 | . . . 3 . . . . . . . . . . . . . . . . . . . . . . . Tunnel 3 | . . . 3 . . . . . . . . . . . . . . . . . . . . . . . Scanalyzers . | . . . . . . . . . . . . . . . . . . . . . . . . . . . Garrison Access . | . . . . . . . . . . . . . . . . . . . . . . . . . . . Data Cores Recovered 2 | . . . . . . . . . . . . . . . . . 1 . . . 1 . . . . . Used 1 | . . . . . . . . . . . . . . . . . 1 . . . . . . . . . Hacking Detections 33 | . . . 6 . 4 . . . . . 3 . . . . 7 1 1 . . 3 3 2 2 1 . Full Trace Events 5 | . . . . . 2 . . . . . 2 . . . . 1 . . . . . . . . . . Feedback Events . | . . . . . . . . . . . . . . . . . . . . . . . . . . . Feedback Blocked 1 | . . . . . . . . . . . . . . . . 1 . . . . . . . . . . Robot Schematics Acquired . | . . . . . . . . . . . . . . . . . . . . . . . . . . . Robots Built . | . . . . . . . . . . . . . . . . . . . . . . . . . . . Authchips . | . . . . . . . . . . . . . . . . . . . . . . . . . . . Time . | . . . . . . . . . . . . . . . . . . . . . . . . . . . Total Robot Build Rating . | . . . . . . . . . . . . . . . . . . . . . . . . . . . Part Schematics Acquired 54 | . . . . 12 19 4 3 4 2 1 . 1 . 5 . 3 . . . . . . . . . . Parts Built 5 | . . . . . 2 . . . . . . . . . . 2 . . . . . . . . 1 . Authchips 3 | . . . . . 2 . . . . . . . . . . 1 . . . . . . . . . . Time 264 | . . . . . 142 . . . . . . . . . . 53 . . . . . . . . 69 . Total Part Build Rating 32 | . . . . . 11 . . . . . . . . . . 12 . . . . . . . . 9 . Part Studies Acquired 2 | . . . . . . . . . . . . . . . . . . . . . 1 1 . . . . Parts Repaired 1 | . . . . . . . . . . . . . . . . . . . . . 1 . . . . . Time 194 | . . . . . . . . . . . . . . . . 86 . . . . 108 . . . . . Parts Recycled . | . . . . . . . . . . . . . . . . . . . . . . . . . . . Recycled Matter . | . . . . . . . . . . . . . . . . . . . . . . . . . . . Retrieved Matter . | . . . . . . . . . . . . . . . . . . . . . . . . . . . Retrieved Components . | . . . . . . . . . . . . . . . . . . . . . . . . . . . Parts Scanalyzed 1 | . . . . . . . . . . . 1 . . . . . . . . . . . . . . . Part Schematics Acquired . | . . . . . . . . . . . . . . . . . . . . . . . . . . . Parts Damaged 1 | . . . . . . . . . . . 1 . . . . . . . . . . . . . . . Bothacking | -11 -10 -10 -8 -8 -6 -6 -6 -6 -6 -5 -5 -5 -5 -5 -4 -4 -4 -4 -4 -4 -3 -3 -3 -2 -1 -1 ------------ Run | Yrd Mat Sub Rec Scr Fac Low Low Zio Dee Pro Fac Upp Upp Zhi Pro Fac Ext Cet Arc Hub Res Qua Sec Res Acc Com Used RIF Installer . | . . . . . . . . . . . . . . . . . . . . . . . . . . . Robots Hacked 5 | . . . . . 1 . . . . . . . . 3 . . . . 1 . . . . . . . Non-combat 2 | . . . . . 1 . . . . . . . . . . . . . 1 . . . . . . . Combat 3 | . . . . . . . . . . . . . . 3 . . . . . . . . . . . . Robot Hacks Applied 5 | . . . . . 1 . . . . . . . . 3 . . . . 1 . . . . . . . parse_system 3 | . . . . . . . . . . . . . . 3 . . . . . . . . . . . . find_chute 1 | . . . . . 1 . . . . . . . . . . . . . . . . . . . . . check_alert 1 | . . . . . . . . . . . . . . . . . . . 1 . . . . . . . Relay Couplers Released . | . . . . . . . . . . . . . . . . . . . . . . . . . . . Fabnet Peak Effective % . | . . . . . . . . . . . . . . . . . . . . . . . . . . . Robots Rewired 6 | . . . . . . 2 . . . . . . . . . . 4 . . . . . . . . . Allies Hacked . | . . . . . . . . . . . . . . . . . . . . . . . . . . . Hacks Repelled . | . . . . . . . . . . . . . . . . . . . . . . . . . . . Allies | -11 -10 -10 -8 -8 -6 -6 -6 -6 -6 -5 -5 -5 -5 -5 -4 -4 -4 -4 -4 -4 -3 -3 -3 -2 -1 -1 -------- Run | Yrd Mat Sub Rec Scr Fac Low Low Zio Dee Pro Fac Upp Upp Zhi Pro Fac Ext Cet Arc Hub Res Qua Sec Res Acc Com Total Allies 15 | . . . . . . 2 1 . . . . . . . . . 7 5 . . . . . . . . Largest Group 8 | . . . . . . 2 2 1 1 1 1 . . . . . 5 8 4 3 3 . . . . . Highest-Rated Group 700 | . . . . . . 56 124 99 99 98 98 . . . . . 287 700 370 269 269 . . . . . Highest-Rated Ally 159 | . . . . . . 31 99 99 99 98 98 . . . . . 159 136 96 96 96 . . . . . Total Orders 10 | . . . . . 1 4 1 . . . . . . . . . . . 2 2 . . . . . . STAY 5 | . . . . . . 2 1 . . . . . . . . . . . 1 1 . . . . . . FOLLOW 4 | . . . . . . 2 . . . . . . . . . . . . 1 1 . . . . . . EXPLORE 1 | . . . . . 1 . . . . . . . . . . . . . . . . . . . . . Ally Attacks 181 | . . . . . . 3 9 . 32 3 8 . . . . . 24 45 29 5 23 . . . . . Total Damage 7226 | . . . . . . 44 174 . 1879 168 449 . . . . . 866 1343 1468 143 692 . . . . . Kills 42 | . . . . . . . 4 . 19 . 2 . . . . . 5 5 4 1 2 . . . . . Allies Corrupted . | . . . . . . . . . . . . . . . . . . . . . . . . . . . Allies Melted . | . . . . . . . . . . . . . . . . . . . . . . . . . . . Intel | -11 -10 -10 -8 -8 -6 -6 -6 -6 -6 -5 -5 -5 -5 -5 -4 -4 -4 -4 -4 -4 -3 -3 -3 -2 -1 -1 ------- Run | Yrd Mat Sub Rec Scr Fac Low Low Zio Dee Pro Fac Upp Upp Zhi Pro Fac Ext Cet Arc Hub Res Qua Sec Res Acc Com Active Infowar (turns) 33479 | 42 213 5298 348 . 2515 2759 1414 1479 857 1265 809 1158 428 247 424 2193 988 531 598 344 1357 2954 1560 522 2844 332 Optics 2946 | . . . . . . . . . 678 1265 201 . . . . . . . . . . 800 2 . . . Sensors 22297 | . . . . . 2433 1569 1279 1475 857 1249 809 1158 428 247 424 1661 183 . 501 344 1350 2426 1050 444 2410 . Terrain 4226 | . . . . . . . . . . . . . . . . . . . . . . 485 600 428 2663 50 Structural 5439 | . . . . . 250 2759 1414 1016 . . . . . . . . . . . . . . . . . . Seismic 6762 | 42 213 5298 348 . 861 . . . . . . . . . . . . . . . . . . . . . Machine Analysis 610 | . . . . . . . . . . . . . . . . 610 . . . . . . . . . . Jamming 12553 | . . . . . 1081 296 . . . . . . . . . 2071 983 531 97 . 1346 2098 1231 5 2482 332 ECM 1 | . . . . . . . . . . . . . . . . . . . . . . . 1 . . . Robot Analysis Total 9 | . . . . 5 . . . . . . . . . 4 . . . . . . . . . . . . Derelict Logs Recovered 13 | . . 1 . 4 . 1 3 . . 2 . 1 . . 1 . . . . . . . . . . . Drone Launches 2 | . . . . . 2 . . . . . . . . . . . . . . . . . . . . . Drone Recoveries 2 | . . . . . 2 . . . . . . . . . . . . . . . . . . . . . Exploration | -11 -10 -10 -8 -8 -6 -6 -6 -6 -6 -5 -5 -5 -5 -5 -4 -4 -4 -4 -4 -4 -3 -3 -3 -2 -1 -1 ------------- Run | Yrd Mat Sub Rec Scr Fac Low Low Zio Dee Pro Fac Upp Upp Zhi Pro Fac Ext Cet Arc Hub Res Qua Sec Res Acc Com Turns Passed 49804 | 107 213 6372 2860 6397 2540 2759 1414 1479 4155 1265 1138 1275 440 397 448 2288 1158 531 805 344 1567 3392 1577 577 2844 1462 Spaces Moved 23614 | 43 73 2446 1092 3263 1618 1804 953 1094 2328 571 386 576 323 160 320 1155 391 155 213 203 721 1463 735 268 685 575 Core 17 | 2 . . . 9 . . . . 6 . . . . . . . . . . . . . . . . . Treads 4313 | 41 73 1273 636 35 . . . . . . . . . . . . . . . . . 133 670 246 685 521 Legs 7235 | . . . . . . . . . 708 571 386 576 323 160 320 1155 391 155 213 203 721 1330 1 22 . . Wheels 11930 | . . 1173 456 3219 1618 1804 953 1094 1613 . . . . . . . . . . . . . . . . . Hover 1 | . . . . . . . . . 1 . . . . . . . . . . . . . . . . . Flight . | . . . . . . . . . . . . . . . . . . . . . . . . . . . Fastest Speed 50 | 50 160 110 150 120 120 130 130 120 110 210 130 130 130 130 130 132 132 186 132 132 132 134 160 160 155 143 Average Speed 173 | 154 273 237 251 189 125 130 130 132 157 210 196 195 130 130 130 140 189 186 179 132 194 191 160 164 158 150 Slowest Speed 2600 | 160 320 480 320 1750 130 140 130 140 2600 210 242 275 130 130 132 190 235 186 187 132 198 240 270 210 237 158 Overloaded Moves . | . . . . . . . . . . . . . . . . . . . . . . . . . . . Propulsion Burnouts . | . . . . . . . . . . . . . . . . . . . . . . . . . . . Robots Hopped . | . . . . . . . . . . . . . . . . . . . . . . . . . . . Potential Cave-ins 33 | . . . . . . . . . . 2 . . . . . 13 8 . . . . . 5 . 5 . Cave-ins Triggered . | . . . . . . . . . . . . . . . . . . . . . . . . . . . Teleports 1 | . . . . . . . . . . . . . . . . . . . . . . . 1 . . . Microwarps 5 | . . . . . . . . . . . . . . . . . . . . . . . 3 . . 2 Exploration Rate (%) 55 | 4 12 79 81 93 52 96 96 87 83 84 15 64 52 60 57 37 62 65 87 15 20 96 42 10 23 14 Regions Visited 26 Branch Regions 19 Pre-discovered Areas 11 | . . 1 4 1 . 1 1 . . . . . . 3 . . . . . . . . . . . . Known Exits Taken 23 | . . . 1 1 1 1 1 1 1 1 1 1 1 1 1 1 1 1 1 1 1 1 1 1 1 . Unknown Exits Taken 3 | 1 1 1 . . . . . . . . . . . . . . . . . . . . . . . . Scrap Searched 35 | . . 4 . 5 . 10 5 5 . 2 . 3 . . 1 . . . . . . . . . . . Spaces Dug 309 | . . 8 1 . 24 13 . . . 8 12 6 . . . 85 10 . . 6 20 20 35 11 37 13 Terrain Destroyed 1128 | . . 138 4 . 30 23 19 . 15 18 90 28 4 . 5 166 23 3 2 185 47 88 53 24 68 95 Melee 39 | . . . . . 24 13 . . . . . . . . . . . . . . . . 2 . . . Projectile 546 | . . 5 4 . 6 . . . 13 18 44 14 4 . 5 122 23 3 2 13 31 44 51 11 54 79 AOE 543 | . . 133 . . . 10 19 . 2 . 46 14 . . . 44 . . . 172 16 44 . 13 14 16 Terrain Rammed . | . . . . . . . . . . . . . . . . . . . . . . . . . . . Walls Destroyed . | . . . . . . . . . . . . . . . . . . . . . . . . . . . Machines Disabled . | . . . . . . . . . . . . . . . . . . . . . . . . . . . Actions | -11 -10 -10 -8 -8 -6 -6 -6 -6 -6 -5 -5 -5 -5 -5 -4 -4 -4 -4 -4 -4 -3 -3 -3 -2 -1 -1 --------- Run | Yrd Mat Sub Rec Scr Fac Low Low Zio Dee Pro Fac Upp Upp Zhi Pro Fac Ext Cet Arc Hub Res Qua Sec Res Acc Com Total 30695 | 65 87 2875 1198 3486 1955 2148 1085 1130 2769 616 603 703 334 343 340 1543 742 364 612 260 830 1941 1034 368 2332 932 Wait 4532 | 5 2 245 78 169 111 254 76 13 227 29 93 72 7 156 11 108 227 182 373 42 28 263 139 12 1498 112 Move 23477 | 42 72 2445 1091 3262 1617 1803 952 1093 2327 570 386 575 322 159 319 1155 390 154 212 202 720 1462 673 267 684 523 Hop . | . . . . . . . . . . . . . . . . . . . . . . . . . . . Pick Up 284 | 2 6 25 11 19 34 6 7 5 45 2 9 17 . 3 1 21 3 3 1 1 7 21 11 4 7 13 Fast Attach 113 | 7 1 3 1 4 9 6 2 5 20 . . 1 . 1 . 1 4 . 1 . 4 11 10 9 5 8 Attach 87 | . . 5 . 3 12 1 3 1 14 . 3 2 . . . 3 1 1 1 . 1 3 12 4 3 14 Detach 226 | . 1 . . 5 5 1 . 1 19 . 4 10 . 5 . 11 10 1 6 . 12 29 26 21 18 41 Swap 405 | 1 1 47 3 3 45 15 13 3 19 2 6 7 1 6 3 41 6 2 3 . 9 36 49 18 39 27 Drop 304 | . 3 10 5 21 30 12 6 9 60 2 7 4 . 4 1 11 2 2 1 1 15 33 17 9 12 27 Fire 1036 | 8 1 88 9 . 19 18 25 . 34 11 93 15 4 9 5 180 34 19 13 14 34 79 67 24 66 167 Melee 114 | . . . . . 68 14 1 . 4 . . . . . . . . . 1 . . 4 22 . . . Ram . | . . . . . . . . . . . . . . . . . . . . . . . . . . . Kick 10 | . . . . . . . . . . . 1 . . . . 9 . . . . . . . . . . Crush 1 | . . . . . . . . . . . . . . . . . . . . . . . 1 . . . Escape Stasis 26 | . . . . . . . . . . . . . . . . . 20 . . . . . 6 . . . Rewire 63 | . . . . . . 18 . . . . . . . . . . 45 . . . . . . . . . Trap . | . . . . . . . . . . . . . . . . . . . . . . . . . . . Miscellaneous 17 | . . 7 . . 5 . . . . . 1 . . . . 3 . . . . . . 1 . . . Route ------- -11/Scrapyard -10/Materials -10/Subcaves (discovered 3 exits: *Mat x2 / *Rec) -8/Recycling (discovered 2 exits: Fac / *Scr) -8/Scraptown (discovered 2 exits: *Fac x2) -6/Factory (discovered 2 exits: *Fac / *Low) -6/Lower Caves -6/Lower Caves (discovered 2 exits: *Fac / *Zio) -6/Zion (discovered 2 exits: *Dee / *Pro) -6/Deep Caves -5/Proximity Caves -5/Factory -5/Upper Caves -5/Upper Caves -5/Zhirov -4/Proximity Caves -4/Factory (discovered 6 exits: *Res x3 / *Upp / *Ext x2) -4/Extension (discovered 2 exits: *Res / *Cet) -4/Cetus -4/Archives (discovered 3 exits: *Res / *Hub x2) -4/Hub_04(d) -3/Research (discovered 3 exits: *Res x2 / *Qua) -3/Quarantine (discovered 2 exits: *Sec / *Frg) -3/Section 7 -2/Research (discovered 3 exits: *Acc / Tes x2) -1/Access -1/Command 0b10 Command History --------- Turn | Location | Event 18 | -11/Scrapyard | Discovered new exit (range 16) 108 | -11/Scrapyard | Entered Materials 241 | -10/Materials | Discovered new exit (range 12) 305 | -10/Materials | Build established: Mutant 321 | -10/Materials | Entered Subcaves 322 | -10/Subcaves | Approached by a straggling Scientist 968 | -10/Subcaves | Learned location of Zion (-6) 968 | -10/Subcaves | Met a Zionite searching for "candidates" 1710 | -10/Subcaves | Curiously followed by a Cobbler waking with a query about "LVR3C" 1720 | -10/Subcaves | Discovered new exit (range 14) 2540 | -10/Subcaves | Ambushed by angry Subdweller bent on revenge 2547 | -10/Subcaves | Core integrity fell below 50% 3038 | -10/Subcaves | Visited 4L-MR0's lab 5196 | -10/Subcaves | Identified exit to Materials 5922 | -10/Subcaves | Build established: Subdweller-Mutant 6022 | -10/Subcaves | Discovered new exit (range 14) 6089 | -10/Subcaves | Core integrity fell below 20% 6372 | -10/Subcaves | Found SUBCON Basin 6513 | -10/Subcaves | Build established: Scavenger-Mutant 6693 | -10/Subcaves | Entered Recycling 7159 | -8/Recycling | Scanned before Scraplab entrance 7181 | -8/Recycling | Entered Scraplab 7805 | -8/Recycling | Build established: Mutant 8541 | -8/Recycling | Learned location of 1 exit from Storage 8595 | -8/Recycling | Identified exit to Factory 8641 | -8/Recycling | Identified exit to Scraptown 8679 | -8/Recycling | Learned Storage trap positions 8705 | -8/Recycling | Learned location of 1 exit from Storage 8748 | -8/Recycling | Learned location of 1 exit from Storage 8811 | -8/Recycling | Learned Factory trap positions 9553 | -8/Recycling | Entered Scraptown 9952 | -8/Scraptown | Scanned Subdweller tech in exchange for log data 9955 | -8/Scraptown | Learned Research trap positions 9957 | -8/Scraptown | Learned location of Quarantine (-3) 9958 | -8/Scraptown | Learned location of 1 exit from Research 9959 | -8/Scraptown | Learned Research emergency access door positions 9966 | -8/Scraptown | Heard Great Nut preacher, LISTEN AND RECITE! 9993 | -8/Scraptown | Visited Cyclists 10029 | -8/Scraptown | Visited Symbiants 10049 | -8/Scraptown | Visited Spacefarers 10303 | -8/Scraptown | Visited UFD Registry 10306 | -8/Scraptown | Registered with UFD as "Softboard" 10329 | -8/Scraptown | Visited IN-MT5's Study 10416 | -8/Scraptown | Guru changed UFD alias to "Hellripper" 10515 | -8/Scraptown | Entered Cyclist Reading Room 10852 | -8/Scraptown | Visited Curators Association 10930 | -8/Scraptown | Visited Observation Area 11012 | -8/Scraptown | Visited Analyses Database 11260 | -8/Scraptown | Visited Junk Repository 11333 | -8/Scraptown | Visited Derelict Rescue Squad 11386 | -8/Scraptown | Visited Research Penetration Think Tank 11440 | -8/Scraptown | Visited Infowarlord's Domain 11491 | -8/Scraptown | Visited Scrapoid Research Area 11526 | -8/Scraptown | Visited Modified Component R&D 12475 | -8/Scraptown | Tech Extrapolator generated special schematic: Machine Rigger 12798 | -8/Scraptown | Tech Extrapolator generated special schematic: Vmp. Humpback 12960 | -8/Scraptown | Visited Awakened 13272 | -8/Scraptown | Tech Extrapolator generated special schematic: Deep Structural Scanner 13602 | -8/Scraptown | Visited CPS Storage 13982 | -8/Scraptown | Found Exp. Terrain Scan Processor 14245 | -8/Scraptown | Visited Chapter 10 14340 | -8/Scraptown | Found Scrap Suit 15041 | -8/Scraptown | Visited Artisan Demo Area 15683 | -8/Scraptown | Found DRS Beacon 15847 | -8/Scraptown | Found Scrap Suit 15950 | -8/Scraptown | Entered Factory 15950 | -6/Factory | Evolved 8 slots: Power x1, Utility x7 15951 | -6/Factory | Loaded intel: 125 trap records 16243 | -6/Factory | Build established: Scrapper 16654 | -6/Factory | Build established: Mutant 17248 | -6/Factory | Discovered new exit (range 36) 17258 | -6/Factory | Discovered new exit (range 26) 17336 | -6/Factory | Identified exit to Lower Caves 18024 | -6/Factory | Fabricated Mak. Sensor Array (x1) 18199 | -6/Factory | Fabricated Deep Structural Scanner? 18310 | -6/Factory | Found Hvy. Insulated Plating 18330 | -6/Factory | Central database locked down 18479 | -6/Factory | Tech Extrapolator generated special schematic: Vmp. Broadsword 18490 | -6/Factory | Entered Lower Caves 18496 | -6/Lower Caves | Build established: Infiltrator-Assassin 18966 | -6/Lower Caves | Attacked by a faux Warlord 18989 | -6/Lower Caves | Tech Extrapolator generated special schematic: Vmp. Brace Plating 19430 | -6/Lower Caves | Found Alien Artifact 19430 | -6/Lower Caves | Identified Core Expander 19430 | -6/Lower Caves | Installed Core Expander, added new Utility slot 19475 | -6/Lower Caves | Build established: Skirmisher 19831 | -6/Lower Caves | Discovered new exit (range 17) 19956 | -6/Lower Caves | Identified exit to Lower Caves 20269 | -6/Lower Caves | Found Prototype Device 20269 | -6/Lower Caves | Identified Heart of Steel 20566 | -6/Lower Caves | Build established: Mutant 21018 | -6/Lower Caves | Murdered Warlord Statue 21249 | -6/Lower Caves | Entered another Lower Caves area 21249 | -6/Lower Caves | Accompanied by 2 allies 21438 | -6/Lower Caves | Discovered new exit (range 13) 21785 | -6/Lower Caves | Learned Factory terminal intel 21817 | -6/Lower Caves | Learned Factory security intel 21823 | -6/Lower Caves | Build established: Skirmisher 21850 | -6/Lower Caves | Found DCF Scrap (17 items) 21888 | -6/Lower Caves | Tech Extrapolator generated special schematic: Energy Deflector 22038 | -6/Lower Caves | Heart of Steel transformed into Warbot 22525 | -6/Lower Caves | Attracted the attention of an 0b10 checkpoint 22595 | -6/Lower Caves | Discovered new exit (range 11) 22656 | -6/Lower Caves | Identified exit to Zion 22663 | -6/Lower Caves | Entered Zion 22663 | -6/Zion | Accompanied by 1 ally (Warbot) 22691 | -6/Zion | Received a hallucinogenic algorithm 22746 | -6/Zion | System corruption cleaned by Quarantine Array 22834 | -6/Zion | Acquired unknown access codes intercepted by a Zionite 22839 | -6/Zion | Discovered new exit (range 11) 22857 | -6/Zion | Identified exit to Proximity Caves 23096 | -6/Zion | Build established: Scrapper 23178 | -6/Zion | Turned away by Imprinter 23393 | -6/Zion | Found Relay Coupler [Programmer] 24101 | -6/Zion | Opened final containment barrier to the Deep Caves 24125 | -6/Zion | Discovered new exit (range 3) 24125 | -6/Zion | Saw the warning signs outside the Deep Caves entrance 24135 | -6/Zion | Identified exit to Deep Caves 24142 | -6/Zion | Entered Deep Caves 24142 | -6/Deep Caves | Accompanied by 1 ally (Warbot) 24377 | -6/Deep Caves | Z-Facility disabled 24404 | -6/Deep Caves | Attacked by Z-Imprinter 24414 | -6/Deep Caves | Attached CPS modules to Z-Imprinter. 24423 | -6/Deep Caves | Destroyed Z-Imprinter 24455 | -6/Deep Caves | Found Prototype Device 24455 | -6/Deep Caves | Identified Zio. Metafield Generator 24514 | -6/Deep Caves | Found Prototype Protection 24514 | -6/Deep Caves | Identified Zio. Weapon Casing 24741 | -6/Deep Caves | Build established: Mutant 24775 | -6/Deep Caves | Found Zio. Weapon Casing 24794 | -6/Deep Caves | Found Zio. Weapon Casing 24796 | -6/Deep Caves | Found Zio. Weapon Casing 24801 | -6/Deep Caves | Found Zio. Weapon Casing 24833 | -6/Deep Caves | Found Zio. Weapon Casing 25869 | -6/Deep Caves | Spotted AG-36929 25902 | -6/Deep Caves | Destroyed AG-36929 25907 | -6/Deep Caves | Found GOLEM Unit 26411 | -6/Deep Caves | Spotted AG-50060 26444 | -6/Deep Caves | Destroyed AG-50060 26488 | -6/Deep Caves | Triggered Deep Caves wall 26488 | -6/Deep Caves | Spotted AS-69514 26488 | -6/Deep Caves | Spotted AS-13418 26498 | -6/Deep Caves | Destroyed AS-69514 26501 | -6/Deep Caves | Destroyed AS-13418 26519 | -6/Deep Caves | Destroyed 31 combat bots 26524 | -6/Deep Caves | Exposed GOLEM chamber 26528 | -6/Deep Caves | Found GOLEM Unit 26538 | -6/Deep Caves | Found GOLEM Unit 26876 | -6/Deep Caves | Found GOLEM Unit 26883 | -6/Deep Caves | Found GOLEM Unit 27109 | -6/Deep Caves | Build established: Golem 28073 | -6/Deep Caves | Found GOLEM Unit 28282 | -6/Deep Caves | Discovered new exit (range 7) 28293 | -6/Deep Caves | Identified exit to Proximity Caves 28297 | -6/Deep Caves | Entered Proximity Caves 28297 | -5/Proximity Caves | Accompanied by 1 ally (Warbot) 28592 | -5/Proximity Caves | Learned Factory interactive machine intel 28890 | -5/Proximity Caves | Tech Extrapolator generated special schematic: Heat Bomb Trap 29083 | -5/Proximity Caves | Learned Factory terminal intel 29348 | -5/Proximity Caves | Core integrity fell below 50% 29375 | -5/Proximity Caves | Discovered new exit (range 16) 29560 | -5/Proximity Caves | Identified exit to Factory 29562 | -5/Proximity Caves | Entered Factory 29562 | -5/Factory | Accompanied by 1 ally (Warbot) 29562 | -5/Factory | Evolved 2 slots: Propulsion x2 29564 | -5/Factory | Loaded intel: 53 interactive machine locations 29565 | -5/Factory | Loaded intel: 26 terminal locations 29640 | -5/Factory | Spotted B-75 Beast 29661 | -5/Factory | Allies destroyed B-75 Beast 30583 | -5/Factory | Garrison activated, responded to threat 30610 | -5/Factory | Destroyed 8 combat bots 30613 | -5/Factory | Cargo convoy interrupted 30692 | -5/Factory | Lost 3 parts (1u2w) 30692 | -5/Factory | Discovered new exit (range 5) 30699 | -5/Factory | Identified exit to Upper Caves 30700 | -5/Factory | Entered Upper Caves 31494 | -5/Upper Caves | Discovered new exit (range 13) 31517 | -5/Upper Caves | Identified exit to Upper Caves 31618 | -5/Upper Caves | Learned 4 Factory zone layouts 31975 | -5/Upper Caves | Entered another Upper Caves area 32385 | -5/Upper Caves | Discovered new exit (range 16) 32403 | -5/Upper Caves | Ambushed by wild Derelicts 32413 | -5/Upper Caves | Identified exit to Zhirov 32415 | -5/Upper Caves | Entered Zhirov 32418 | -5/Zhirov | Discovered new exit (range 3) 32442 | -5/Zhirov | Met Zhirov 32473 | -5/Zhirov | Learned location of Testing (-2) 32473 | -5/Zhirov | Learned location of Command (-1) 32484 | -5/Zhirov | Zhirov requested help retrieving the SGEMP Prototype 32507 | -5/Zhirov | Found Alien Artifact 32507 | -5/Zhirov | Identified Integrated Reactor 32507 | -5/Zhirov | Installed Integrated Reactor, increased core energy generation (+10) 32524 | -5/Zhirov | Found Alien Artifact 32809 | -5/Zhirov | Identified exit to Proximity Caves 32812 | -5/Zhirov | Entered Proximity Caves 33039 | -4/Proximity Caves | Spotter reported a threat 33096 | -4/Proximity Caves | Learned Research emergency access door positions 33243 | -4/Proximity Caves | Discovered new exit (range 14) 33259 | -4/Proximity Caves | Identified exit to Factory 33260 | -4/Proximity Caves | Entered Factory 33260 | -4/Factory | Evolved 2 slots: Propulsion x1, Utility x1 33262 | -4/Factory | Loaded intel: 27 terminal locations 33562 | -4/Factory | Discovered new exit (range 8) 33951 | -4/Factory | Discovered new exit (range 16) 34205 | -4/Factory | Discovered new exit (range 6) 34211 | -4/Factory | Identified exit to Research 34977 | -4/Factory | Fabricated Hyp. Gauss Cannon? 35077 | -4/Factory | Tech Extrapolator generated special schematic: Hyp. Alpha Cannon 35272 | -4/Factory | Spotted B-86 Titan 35402 | -4/Factory | Discovered new exit (range 5) 35412 | -4/Factory | Identified exit to Upper Caves 35457 | -4/Factory | Discovered exit to Research (range 7) 35500 | -4/Factory | Lost 3 parts (1n2u) 35510 | -4/Factory | First assault squad dispatched 35524 | -4/Factory | Discovered new exit (range 16) 35546 | -4/Factory | Identified exit to Extension 35548 | -4/Factory | Entered Extension 35963 | -4/Extension | Rescued A7 36141 | -4/Extension | Energy Cycler disabled 36141 | -4/Extension | Rescued a captive Derelict 36141 | -4/Extension | Rescued a captive Derelict 36142 | -4/Extension | Rescued a captive Derelict 36142 | -4/Extension | Rescued a captive Derelict 36143 | -4/Extension | Rescued a captive Derelict 36143 | -4/Extension | Rescued a captive Derelict 36143 | -4/Extension | Rescued a captive Derelict 36150 | -4/Extension | Rescued a captive Derelict 36251 | -4/Extension | P-70 Sage assimilated allied 1W-VMO(g) 36624 | -4/Extension | Found Prototype Protection 36624 | -4/Extension | Identified Med. Regenerative Plating 36680 | -4/Extension | Discovered exit to Research (range 10) 36682 | -4/Extension | Discovered new exit (range 6) 36691 | -4/Extension | Identified exit to Cetus 36706 | -4/Extension | Entered Cetus 36706 | -4/Cetus | Accompanied by 5 allies (A7) 36711 | -4/Cetus | Acquired a Cetus Manufacturing Module code from A7 36741 | -4/Cetus | Spotted Cetus Guard 36743 | -4/Cetus | Spotted Cetus Guard 36744 | -4/Cetus | Destroyed Cetus Guard 36747 | -4/Cetus | Spotted Cetus Guard 36747 | -4/Cetus | Spotted Cetus Guard 36752 | -4/Cetus | Destroyed Cetus Guard 36755 | -4/Cetus | Destroyed Cetus Guard 36764 | -4/Cetus | Allies destroyed Cetus Guard 36867 | -4/Cetus | Escorted A7 to Cetus Mainframe 36892 | -4/Cetus | Started Cetus Manufacturing Module 36917 | -4/Cetus | Manufactured an Enhanced Grunt 36918 | -4/Cetus | Discovered new exit (range 16) 36942 | -4/Cetus | Manufactured an Enhanced Grunt 36967 | -4/Cetus | Manufactured an Enhanced Grunt 36992 | -4/Cetus | Manufactured an Enhanced Grunt 37017 | -4/Cetus | Manufactured an Enhanced Grunt 37116 | -4/Cetus | Spotted Cetus Guard 37116 | -4/Cetus | Spotted Cetus Guard 37116 | -4/Cetus | Spotted Cetus Guard 37116 | -4/Cetus | Spotted Cetus Guard 37121 | -4/Cetus | Destroyed A7 37126 | -4/Cetus | Allies destroyed Cetus Guard 37130 | -4/Cetus | Destroyed Cetus Guard 37136 | -4/Cetus | Allies destroyed Cetus Guard 37136 | -4/Cetus | Destroyed Cetus Guard 37145 | -4/Cetus | Extracted ID and sensor layout for unrecognized location from A7's data core 37157 | -4/Cetus | Lost 4 allies 37225 | -4/Cetus | Identified exit to Archives 37237 | -4/Cetus | Entered Archives 37237 | -4/Archives | Accompanied by 4 allies 37257 | -4/Archives | Build established: Commander-Golem 37371 | -4/Archives | Discovered new exit (range 15) 37439 | -4/Archives | Discovered new exit (range 14) 37515 | -4/Archives | Discovered exit to Research (range 15) 37719 | -4/Archives | Build established: Golem 38033 | -4/Archives | Identified exit to Hub_04(d) 38042 | -4/Archives | Entered Hub_04(d) 38042 | -4/Hub_04(d) | Accompanied by 3 allies 38075 | -4/Hub_04(d) | Discovered exit to Research (range 4) 38335 | -4/Hub_04(d) | Network Hub disabled 38386 | -4/Hub_04(d) | Entered Research 38386 | -3/Research | Accompanied by 3 allies 38386 | -3/Research | Evolved 2 slots: Utility x1, Weapon x1 38387 | -3/Research | Identified exit to Quarantine 38388 | -3/Research | Loaded intel: 58 trap records 38491 | -3/Research | Found Prototype Launcher 38491 | -3/Research | Identified Adv. Micro-nuke Launcher 38586 | -3/Research | Revision forces began assault on 0b10 38743 | -3/Research | Build established: Scavenger-Golem 38831 | -3/Research | Found Prototype Launcher 38831 | -3/Research | Identified Tesla Bomb Launcher 39005 | -3/Research | Discovered new exit (range 13) 39027 | -3/Research | Identified exit to Research 39043 | -3/Research | Found Prototype Launcher 39043 | -3/Research | Identified Com. Tesla Bomb Launcher 39066 | -3/Research | Build established: Golem 39075 | -3/Research | Met up with Revision 17++ 39086 | -3/Research | Research terminal network offline 39087 | -3/Research | Repaired Centrium Medium Armor Plating? 39459 | -3/Research | Found Gamma Bomb Array 39675 | -3/Research | Found Prototype Protection 39675 | -3/Research | Identified Centrium Heavy Armor Plating 39735 | -3/Research | Discovered exit to Research (range 8) 39736 | -3/Research | Spotted Striker 39737 | -3/Research | Spotted Striker 39737 | -3/Research | Spotted Striker 39737 | -3/Research | Spotted Striker 39765 | -3/Research | Destroyed Striker 39767 | -3/Research | Destroyed Striker 39772 | -3/Research | Destroyed Striker 39779 | -3/Research | Destroyed Striker 39794 | -3/Research | Lost 8 allies 39815 | -3/Research | Destroyed 7 combat bots 39953 | -3/Research | Entered Quarantine 39969 | -3/Quarantine | Found Alien Impact Weapon 40032 | -3/Quarantine | Found Alien Energy Cannon 40703 | -3/Quarantine | Found Alien Artifact 40703 | -3/Quarantine | Identified Phase Redirector 40798 | -3/Quarantine | System corruption reached 10% 41020 | -3/Quarantine | Found Alien Slashing Weapon 41073 | -3/Quarantine | Discovered exit to Research (range 8) 41270 | -3/Quarantine | Cryocooling Duct disabled 41285 | -3/Quarantine | Ambient heat levels rising (+20) 41285 | -3/Quarantine | Non-combat units ordered to evacuate 41286 | -3/Quarantine | Cryocooling Duct disabled 41301 | -3/Quarantine | Ambient heat levels rising (+20) 41301 | -3/Quarantine | Combat units ordered to evacuate 41401 | -3/Quarantine | Quarantine Guard activated 41415 | -3/Quarantine | Found Prototype Processor 41415 | -3/Quarantine | Identified Exp. Melee Analysis Suite 41484 | -3/Quarantine | Found Alien Artifact 41557 | -3/Quarantine | Spotted Quarantine Guard 41600 | -3/Quarantine | Found Alien Artifact 41600 | -3/Quarantine | Identified Phase Armor 41714 | -3/Quarantine | Destroyed Quarantine Guard 41793 | -3/Quarantine | Spotted Quarantine Guard 41891 | -3/Quarantine | Spotted Quarantine Guard 41892 | -3/Quarantine | Spotted Quarantine Guard 41911 | -3/Quarantine | Spotted Quarantine Guard 41916 | -3/Quarantine | Destroyed Quarantine Guard 41924 | -3/Quarantine | Destroyed Quarantine Guard 41927 | -3/Quarantine | Spotted Quarantine Guard 41994 | -3/Quarantine | Destroyed Quarantine Guard 41996 | -3/Quarantine | Destroyed Quarantine Guard 42254 | -3/Quarantine | Found Alien Artifact 42254 | -3/Quarantine | Identified Core Reset Matrix 42254 | -3/Quarantine | Identified Core Cannon 42254 | -3/Quarantine | Identified Subatomic Replicator 42254 | -3/Quarantine | Identified Sigix Broadsword 42254 | -3/Quarantine | Identified Transdimensional Reconstructor 42254 | -3/Quarantine | Identified Core Stripper 42254 | -3/Quarantine | Used Core Reset Matrix 42258 | -3/Quarantine | Detected hypermatrix surge 42258 | -3/Quarantine | Sensed 9 artifacts in vicinity 42327 | -3/Quarantine | Found Hpw. Transdimensional Reconstructor 42338 | -3/Quarantine | Found Dimensional Node Initializer 42445 | -3/Quarantine | Spotted Quarantine Guard 42571 | -3/Quarantine | Build established: Alien-Golem 42847 | -3/Quarantine | Spotted Fortress 42871 | -3/Quarantine | Destroyed Fortress 42884 | -3/Quarantine | Found Unknown Protection 42884 | -3/Quarantine | Identified Hvy. Insulated Plating 42888 | -3/Quarantine | Found Prototype Reactor 42888 | -3/Quarantine | Identified Vortex Chain Reactor 42892 | -3/Quarantine | Found Vortex Chain Reactor 42897 | -3/Quarantine | Found Prototype Device 42897 | -3/Quarantine | Identified Exp. EM Shield 42923 | -3/Quarantine | Found Prototype Device 42923 | -3/Quarantine | Identified Thermal Barrier 42933 | -3/Quarantine | Found Prototype Device 42933 | -3/Quarantine | Identified Exp. Force Field 43326 | -3/Quarantine | Discovered new exit (range 6) 43326 | -3/Quarantine | Discovered new exit (range 5) 43326 | -3/Quarantine | Spotted Quarantine Guard 43326 | -3/Quarantine | Spotted Quarantine Guard 43334 | -3/Quarantine | Identified exit to Protoforge 43340 | -3/Quarantine | Identified exit to Section 7 43342 | -3/Quarantine | Destroyed Quarantine Guard 43345 | -3/Quarantine | Entered Section 7 43346 | -3/Section 7 | Detected hypermatrix surge 43346 | -3/Section 7 | Sensed 22 artifacts in vicinity 43364 | -3/Section 7 | Spotted S7 Guard 43384 | -3/Section 7 | Destroyed S7 Guard 43409 | -3/Section 7 | Found Core Membrane 43409 | -3/Section 7 | Installed Core Membrane, gained immunity to corruption 43417 | -3/Section 7 | Found Corrupted Prototype Protection 43417 | -3/Section 7 | Identified Hvy. Regenerative Plating 43617 | -3/Section 7 | Build established: Alien-Mutant 43784 | -3/Section 7 | Found Integrated Dissipator 43784 | -3/Section 7 | Installed Integrated Dissipator, increased core heat dissipation (+20) 43827 | -3/Section 7 | Found Microwarp Drive 43922 | -3/Section 7 | Initialized slip node 43944 | -3/Section 7 | Build established: Alien-Assassin 44166 | -3/Section 7 | Spotted Alpha 7 44167 | -3/Section 7 | Spotted Alpha 7 44204 | -3/Section 7 | Destroyed Alpha 7 44224 | -3/Section 7 | Destroyed Alpha 7 44240 | -3/Section 7 | Found Prototype Processor 44240 | -3/Section 7 | Identified Exp. Target Analyzer 44247 | -3/Section 7 | Found Prototype Processor 44247 | -3/Section 7 | Identified Exp. Targeting Computer 44256 | -3/Section 7 | Destroyed 8 combat bots 44289 | -3/Section 7 | Found Corrupted Prototype Device 44291 | -3/Section 7 | Identified Exp. ECM Suite 44486 | -3/Section 7 | Build established: Alien-Tank 44519 | -3/Section 7 | Found Spacefold Activator 44599 | -3/Section 7 | Found Integrated Dissipator 44599 | -3/Section 7 | Installed Integrated Dissipator, increased core heat dissipation (+20) 44696 | -3/Section 7 | Spotted B-99 Colossus 44807 | -3/Section 7 | Found Integrated Dissipator 44807 | -3/Section 7 | Installed Integrated Dissipator, increased core heat dissipation (+20) 44863 | -3/Section 7 | Found LRC Armor 44863 | -3/Section 7 | Installed LRC Armor, increased core integrity (+250) 44873 | -3/Section 7 | Found LRC Energy Well 44873 | -3/Section 7 | Installed LRC Energy Well, increased energy storage capacity (+250) 44876 | -3/Section 7 | Found LRC Storage 44876 | -3/Section 7 | Installed LRC Storage, increased inventory capacity (+2) 44878 | -3/Section 7 | Warped through subspace to slip node 44922 | -3/Section 7 | Entered Research 44922 | -2/Research | Evolved 2 slots: Power x1, Propulsion x1 45235 | -2/Research | Build established: Alien-Skirmisher 45350 | -2/Research | Cargo convoy interrupted 45350 | -2/Research | Spotted Executioner 45351 | -2/Research | Spotted Executioner 45356 | -2/Research | Destroyed Executioner 45357 | -2/Research | Spotted Striker 45371 | -2/Research | Destroyed Striker 45372 | -2/Research | Destroyed Executioner 45393 | -2/Research | Destroyed 13 combat bots 45455 | -2/Research | Found Prototype Launcher 45455 | -2/Research | Identified Enh. Gamma Bomb Array 45462 | -2/Research | Identified exit to Testing 45484 | -2/Research | Discovered new exit (range 7) 45497 | -2/Research | Identified exit to Access 45499 | -2/Research | Entered Access 45499 | -1/Access | Evolved 2 slots: Utility x2 45541 | -1/Access | Unchained authorized (GL-D0S) 45947 | -1/Access | Found Exp. Terrain Scan Processor 46336 | -1/Access | Fabricated Adv. Heavy Siege Treads (x1) 46524 | -1/Access | Destroyed 9 combat bots 46593 | -1/Access | Discovered new exit (range 20) 46999 | -1/Access | First assault squad dispatched 47999 | -1/Access | Identified exit to Command 48313 | -1/Access | Build established: Alien-Tank 48343 | -1/Access | Entered Command 48791 | -1/Command | Destroyed Combat Programmer 48803 | -1/Command | Destroyed Combat Programmer 48843 | -1/Command | Spotted M Guard 48858 | -1/Command | Destroyed M Guard 48889 | -1/Command | Found Corrupted Prototype Launcher 48897 | -1/Command | Found Corrupted Prototype Device 48897 | -1/Command | Identified AEGIS Remote Shield 48901 | -1/Command | Found Corrupted Prototype Reactor 48901 | -1/Command | Identified Zero-point Reactor 48908 | -1/Command | Found Corrupted Zero-point Reactor 48980 | -1/Command | Spotted M Guard 48994 | -1/Command | Destroyed M Guard 48994 | -1/Command | All MAIN.C guards destroyed 49036 | -1/Command | Found Corrupted AEGIS Remote Shield 49043 | -1/Command | Found Corrupted Zero-point Reactor 49046 | -1/Command | Found Corrupted Zero-point Reactor 49366 | -1/Command | Found Corrupted Hvy. Regenerative Plating 49580 | -1/Command | Met MAIN.C 49593 | -1/Command | First assault squad dispatched 49647 | -1/Command | Destroyed MAIN.C Shell 49649 | -1/Command | MAIN.C activated Command garrisons 49722 | -1/Command | Destroyed MAIN.C 49733 | -1/Command | P-80 Master assimilated allied S-43 Plague 49798 | -1/Command | Destroyed 24 combat bots 49805 | -1/Command | Interfaced with 0b10 Conduit 49805 | *** | Assimilated 0b10! Last Messages --------------- 49764_ Slug penetrates Reinforced Barrier. 49765_ Unknown Device fried. 49765_ Adv. Targeting Computer fried. 49765_ H-88 Terminator destroyed. 49765_ Chain reaction triggered in Corrupted Mic. Antimatter Reactor. 49765_ Destroyed Unknown Energy Gun. 49765_ Core Membrane filtered system corruption (1). 49768_ Destroyed Unknown Hover Unit. 49768_ P-80 Master knocked back. 49769_ P-80 Master IFF system glitched. 49771_ P-80 Master destroyed. 49773_ Penetrated by Slug. 49777_ H-88 Terminator system terminally corrupted. 49777_ Adv. Targeting Computer fried. 49777_ Lgt. Quantum Reactor fried. 49805_ Interfacing with system... [Achievement: MAIN.CPP] Map ----- +----------------------------------------------------+ | ?????????????????????????????????????????????????? | | ?????????????????????????????????????????????????? | | ?????????????????????????????????????????????????? | | ######################################### #### | | # ########################################## "### | | # ################################### #######"### | | + "################################### ######" ## | | # ##################################### ###### ## | | # ###################################### ##### # | | # #######################################"##### # | | # ######################################## #### | | # #########################################"#### | | # ########################################## ### | | " ########################################### ## | | #########""""""" """" ############ ## | | #########"" "" ############# | | #########""""" "" ############## | | #########""""""""""" ; | | #########" " """ + | | #########"" """""" + | | ##########"" """""" ############### | | ########## " """""" ############### | | ########## " "" ############### | | ########## " " ""############### | | ##########""""""""" """""""############### | | ##########"" @"""""""""############### | | ########## """""""""""############### | | ########## " " " " ############### | | ########## " " " " ############### | | " " " """" " ############### | | """ " " """" ############### | | " " " " ############### | | ########### """""""""" " ############### | | ########### " """ " """"""""############### | | ########### """ " " " ############### | | ############################################### | | ############################################### | | ############################################## | | ############################################## | | ############################################## | | ############################################## | | ############################################## | | ############################################### | | ############################################### | | ############################################### | | ############################################### | | ############################################# # | | ?????????????????????????????????????????????????? | | ?????????????????????????????????????????????????? | | ?????????????????????????????????????????????????? | +----------------------------------------------------+ Best States ------------- Heat Dissipation 165 Coolant Potential 120 Energy Generation 99 Energy Capacity 2480 Matter Stores 800 Matter Capacity 800 Sight Range 22 Robot Scan Range 19 Terrain Scan Range 20 Terrain Scan Density 1010 Jamming Range 16 Additional Mass Support 20 Base Temperature (-) 150 EM Shielding 4 Armor Coverage 2600 Resistance: KI 30 Resistance: TH 15 Resistance: EX 15 Resistance: EM 75 Resistance: I 15 Resistance: S 15 Resistance: P 15 Weapon Shielding 100 Point Defense Rating 240 Melee Speed Boost 30 Phase Shifting 15 Evasion (%) 80 Targeting Accuracy 26 Core Analysis 8 Armor Integrity Analysis 40 Recoil Reduction 6 Authchip Count 3 Item Schematics ----------------- None Robot Schematics ------------------ None Fabricated ------------ Mak. Sensor Array | x1 | -6/Factory | Authchip Deep Structural Scanner | x1 | -6/Factory | Authchip Hyp. Gauss Cannon | x2 | -4/Factory | Authchip Adv. Heavy Siege Treads | x1 | -1/Access | Preloaded Repaired ---------- Centrium Medium Armor Plating | 62% | -3/Research Studied --------- None Alien Tech Used ----------------- Core Expander Integrated Reactor Phase Redirector Phase Armor Core Reset Matrix Core Stripper Core Membrane Integrated Dissipator Dimensional Node Initializer Microwarp Drive Core Cannon LRC Armor LRC Energy Well LRC Storage High-powered Transdimensional Reconstructor Achievements -------------- Brother of Steel MAIN.CPP Challenges ------------ None Game ------ Seed NodeTrapFilter Manual? 0 Play Time 06:51:06 Cumulative 328.7 hours Start 2025.12.24 @ 20:07:02 End 2025.12.25 @ 23:15:27 Sessions 7 Manual Loads 0 Difficulty Rogue Special Mode None Game No. 227 Rogue 224 Adventurer 3 Explorer 0 Win Type 4 Total 16 Types 8/1/3/1/1/0/0/1/0/1 Lore% 77 Gallery% 79 Achievement% 71 Wizard Run 0 Options --------- Layout 2 ASCII 0 Keyboard 1 Movement Arrows Keybinds 0 Fullscreen 1 Font 32/SmallcapsGlow Map View 50x44 Zoom Use 0% Tactical HUD 1 Map Filters NONE Filters NONE Steam 1 RUN: 31c58ad1-c62e-4ff0-8cc2-73434899d5e8